rowid,District,candidate_name,expenditure_amount,expenditure_date,recipient,city,state,zip,expenditure_type,explanation
101,House District 01,Javier Mabrey,20.95,1/25/22,Godaddy .Com,Scottsdale,AZ,85260,Advertising,Website Domain Fee
102,House District 01,Javier Mabrey,92.8,1/25/22,Usps,Lakewood,CO,80226,Advertising,Mailers
103,House District 01,Javier Mabrey,58.15,1/27/22,Jaimes,,CO,,"Food, Beverages and Meals",Caucus Planning Meeting
104,House District 01,Javier Mabrey,10.48,1/28/22,Mail Chimp,,CO,,Fundraising Expenses,Mailchimp Account Fee
105,House District 01,Javier Mabrey,11.99,1/28/22,Godaddy .Com,Scottsdale,AZ,85260,Advertising,Website Domain
106,House District 01,Javier Mabrey,11.99,1/28/22,Godaddy .Com,Scottsdale,AZ,85260,Advertising,Website Domain
107,House District 01,Javier Mabrey,21.02,1/30/22,Actblue,Somerville,MA,2144,Bank Fees,Act Blue Processing Fees
108,House District 01,Javier Mabrey,10.96,1/31/22,King Soopers,Lakewood,CO,,"Food, Beverages and Meals",
109,House District 01,Javier Mabrey,3.9,2/1/22,Conoco,,CO,,"Food, Beverages and Meals",
110,House District 01,Javier Mabrey,5.0,2/1/22,First Bank,Lakewod,CO,,Advertising,Internet Fee
111,House District 01,Javier Mabrey,1167.6,2/3/22,Raffi  Mercuri,,CO,,Employee Services,Pay To Rafii Mercuri
112,House District 01,Javier Mabrey,14.46,2/3/22,Scale To Win,,CA,,Consultant & Professional Services,Fee With Scale To Win
113,House District 01,Javier Mabrey,31.01,2/6/22,Actblue,Somerville,MA,2144,Bank Fees,Act Blue Processing Fees
114,House District 01,Javier Mabrey,29.16,2/7/22,Godaddy .Com,Scottsdale,AZ,85260,Advertising,Website Domain Account Fee
115,House District 01,Javier Mabrey,12.99,2/9/22,Canva,,CO,,Bank Fees,Canva Account Fee
116,House District 01,Javier Mabrey,4.0,2/11/22,Public-Works Parking Meter,Denver,CO,,Travel & Lodging,Parking
117,House District 01,Javier Mabrey,6.14,2/11/22,Kaladi Brothers Coffee,Denver,CO,80210,"Food, Beverages and Meals",Coffee With Team
118,House District 01,Javier Mabrey,6.33,2/13/22,Actblue,Somerville,MA,2144,Bank Fees,Act Blue Processing Fees
119,House District 01,Javier Mabrey,65.0,2/14/22,Emall Octopus,London,UK,EC2A 4NE,Advertising,Email Octopus Account Fee
120,House District 01,Javier Mabrey,1.95,2/14/22,Firstbank,,CO,,Bank Fees,Bank Transaction Fee
121,House District 01,Javier Mabrey,2.0,2/16/22,Public-Works Parking Meter,Denver,CO,,Travel & Lodging,Public Works - Parking Meter
122,House District 01,Javier Mabrey,500.0,2/17/22,Kayla  Frawley,Denver,CO,80238,Employee Services,Payment To Kayla Frawley
123,House District 01,Javier Mabrey,2.38,2/20/22,Actblue,Somerville,MA,2144,Bank Fees,Act Blue Processing Fees
124,House District 01,Javier Mabrey,961.25,2/22/22,Artist Proof,,CO,,Advertising,Shirt Printing Order
125,House District 01,Javier Mabrey,75.34,2/23/22,Godaddy .Com,Scottsdale,AZ,85260,Advertising,Website Domain Fee
126,House District 01,Javier Mabrey,20.95,2/23/22,Godaddy .Com,Scottsdale,AZ,85260,Advertising,Website Domain Repair Fee
127,House District 01,Javier Mabrey,54.28,2/24/22,Pho-Natic,,CO,,"Food, Beverages and Meals",Team Dinner
128,House District 01,Javier Mabrey,-54.28,2/24/22,Pho-Natic,,CO,,"Food, Beverages and Meals",Offset Due To Update Of Filed Item - Team Dinner
129,House District 01,Javier Mabrey,54.28,2/24/22,Pho-Natic,Denver,CO,80203,"Food, Beverages and Meals",Team Dinner
130,House District 01,Javier Mabrey,15.0,2/25/22,Time Park Llc Lot 20,Denver,CO,,Travel & Lodging,Parking For Event
131,House District 01,Javier Mabrey,20.95,2/25/22,Godaddy .Com,Scottsdale,AZ,85260,Advertising,Website Domain Account Fee
132,House District 01,Javier Mabrey,4.0,2/25/22,Public-Works Parking Meter,Denver,CO,,Travel & Lodging,Parking Public Works
133,House District 01,Javier Mabrey,166.0,2/27/22,Usps,,CO,,Office Equipment & Supplies,
134,House District 01,Javier Mabrey,-166.0,2/27/22,Usps,,CO,,Office Equipment & Supplies,Offset Due To Update Of Filed Item
135,House District 01,Javier Mabrey,166.0,2/27/22,Usps,Denver,CO,80219,Office Equipment & Supplies,
136,House District 01,Javier Mabrey,20.98,2/27/22,Actblue,Somerville,MA,2144,Bank Fees,Act Blue Processing Fees
137,House District 01,Javier Mabrey,31.54,2/28/22,E#L Sampa Taqueria,,CO,,"Food, Beverages and Meals",Lunch
138,House District 01,Javier Mabrey,861.37,2/28/22,Table Public House,Denver,CO,80223,"Food, Beverages and Meals","Mixer, Fundraiser & Training For Caucus/Assembly Delegates"
139,House District 01,Javier Mabrey,10.48,2/28/22,Mailchimp,,CO,,Office Equipment & Supplies,Mail Chimp Account Fee
140,House District 01,Javier Mabrey,-31.54,2/28/22,E#L Sampa Taqueria,,CO,,"Food, Beverages and Meals",Offset Due To Update Of Filed Item - Lunch
141,House District 01,Javier Mabrey,31.54,2/28/22,El Sampa Taqueria,Denver,CO,80223,"Food, Beverages and Meals",Lunch
142,House District 01,Javier Mabrey,5.0,3/1/22,Firstbank,,CO,,Office Equipment & Supplies,Bill Pay Account Fee
143,House District 01,Javier Mabrey,9.94,3/3/22,Scale To Win,,CA,,Office Equipment & Supplies,Text Banking
144,House District 01,Javier Mabrey,-9.94,3/3/22,Scale To Win,,CA,,Office Equipment & Supplies,Offset Due To Update Of Filed Item - Text Banking
145,House District 01,Javier Mabrey,9.94,3/3/22,Scale To Win,Santa Ana,CA,92703,Office Equipment & Supplies,Text Banking
146,House District 01,Javier Mabrey,600.0,3/4/22,Sabrina  Pacha,Westminster,CO,80021,Employee Services,"Payment To Sabrina Pacha, Graphic Design And Campaign Consultation"
147,House District 01,Javier Mabrey,43.34,3/6/22,Actblue,Somerville,MA,2144,Bank Fees,Act Blue Processing Fees
148,House District 01,Javier Mabrey,58.0,3/9/22,Usps,Lakewood,CO,80226,Office Equipment & Supplies,Usps Shipping Cost
149,House District 01,Javier Mabrey,12.99,3/9/22,Canva,,CO,,Office Equipment & Supplies,Canva Account Fee
150,House District 01,Javier Mabrey,82.23,3/10/22,Home Depot,,CO,,Office Equipment & Supplies,Printing Home Depot Order
151,House District 01,Javier Mabrey,261.4,3/10/22,Imobiledenver,,CO,,Office Equipment & Supplies,Office Phone
152,House District 01,Javier Mabrey,5.0,3/10/22,Usps,Lakewood,CO,80226,Office Equipment & Supplies,Shipping
153,House District 01,Javier Mabrey,-261.4,3/10/22,Imobiledenver,,CO,,Office Equipment & Supplies,Offset Due To Update Of Filed Item - Office Phone
154,House District 01,Javier Mabrey,261.4,3/10/22,Imobiledenver,Denver,CO,80232,Office Equipment & Supplies,Office Phone
155,House District 01,Javier Mabrey,-82.23,3/10/22,Home Depot,,CO,,Office Equipment & Supplies,Offset Due To Update Of Filed Item - Printing Home Depot Order
156,House District 01,Javier Mabrey,82.23,3/10/22,Office Depot,Lakewood,CO,80226,Office Equipment & Supplies,Office Supplies
157,House District 01,Javier Mabrey,100.0,3/11/22,Denver Democratic Central Committee,Denver,CO,80209,Miscellaneous,Democratic Party Payment
158,House District 01,Javier Mabrey,-100.0,3/11/22,Denver Democratic Central Committee,Denver,CO,80209,Miscellaneous,Offset Due To Update Of Filed Item - Democratic Party Payment
159,House District 01,Javier Mabrey,100.0,3/11/22,Denver Democratic Central Committee,Denver,CO,80209,Miscellaneous,Democratic Party Payment
160,House District 01,Javier Mabrey,6.92,3/13/22,Actblue,Somerville,MA,2144,Bank Fees,Act Blue Processing Fees
161,House District 01,Javier Mabrey,28.4,3/14/22,El Sampa Taqueria,Denver,CO,80223,"Food, Beverages and Meals",Dinner With Team
162,House District 01,Javier Mabrey,65.0,3/14/22,Emall Octopus,London,UK,EC2A 4NE,Office Equipment & Supplies,Email Octopus Account Fee
163,House District 01,Javier Mabrey,1.95,3/14/22,Firstbank,,CO,,Bank Fees,Bank Fee
164,House District 01,Javier Mabrey,-28.4,3/14/22,El Sampa Taqueria,Denver,CO,80223,"Food, Beverages and Meals",Offset Due To Update Of Filed Item - Dinner With Team
165,House District 01,Javier Mabrey,28.4,3/14/22,El Sampa Taqueria,Denver,CO,80223,"Food, Beverages and Meals",Dinner With Team
166,House District 01,Javier Mabrey,205.84,3/15/22,Santiago Mexican Restuarant,Denver,CO,80260,"Food, Beverages and Meals",Post Assembly Team Dinner
167,House District 01,Javier Mabrey,-205.84,3/15/22,Santiago Mexican Restuarant,Denver,CO,80260,"Food, Beverages and Meals",Offset Due To Update Of Filed Item - Post Assembly Team Dinner
168,House District 01,Javier Mabrey,205.84,3/15/22,Santiago Mexican Restuarant,Denver,CO,80260,"Food, Beverages and Meals",Post Assembly Team Dinner
169,House District 01,Javier Mabrey,703.25,3/16/22,Paw Artist Proof Denver,Denver,CO,,Advertising,Shirts Printed
170,House District 01,Javier Mabrey,1500.0,3/16/22,Raffi  Mercuri,,CO,,Employee Services,Payment To Raffi Mercuri
171,House District 01,Javier Mabrey,-703.25,3/16/22,Paw Artist Proof Denver,Denver,CO,,Advertising,Offset Due To Update Of Filed Item - Shirts Printed
172,House District 01,Javier Mabrey,703.25,3/16/22,Paw Artist Proof Denver,Denver,CO,80204,Advertising,Shirts Printed
173,House District 01,Javier Mabrey,7.53,3/20/22,Actblue,Somerville,MA,2144,Bank Fees,Act Blue Processing Fees
174,House District 01,Javier Mabrey,91.05,3/21/22,Torres Mexican Food,Denver,CO,80219,"Food, Beverages and Meals",Team Dinner
175,House District 01,Javier Mabrey,95.0,3/21/22,Campaign Finance,,CO,,Fundraising Expenses,
176,House District 01,Javier Mabrey,-95.0,3/21/22,Campaign Finance,,CO,,Fundraising Expenses,Offset Due To Update Of Filed Item
177,House District 01,Javier Mabrey,95.0,3/21/22,Campaign Finance,Denver,CO,80202,Fundraising Expenses,
178,House District 01,Javier Mabrey,-91.05,3/21/22,Torres Mexican Food,Denver,CO,80219,"Food, Beverages and Meals",Offset Due To Update Of Filed Item - Team Dinner
179,House District 01,Javier Mabrey,91.05,3/21/22,Torres Mexican Food,Denver,CO,80219,"Food, Beverages and Meals",Team Dinner
180,House District 01,Javier Mabrey,1500.0,3/24/22,Kayla  Frawley,Denver,CO,80238,Employee Services,Payment To Kayla Frawley - Campaign Manager
181,House District 01,Javier Mabrey,22.0,3/25/22,Godaddy .Com,Scottsdale,AZ,85260,Office Equipment & Supplies,Website Domain Account Fee
182,House District 01,Javier Mabrey,26.51,3/27/22,Actblue,Somerville,MA,2144,Bank Fees,Act Blue Processing Fees
183,House District 01,Javier Mabrey,3.25,3/28/22,Public-Works Parking Meter,Denver,CO,,Travel & Lodging,Parking
184,House District 01,Javier Mabrey,10.48,3/28/22,Mail Chimp,,CO,,Office Equipment & Supplies,Mail Chimp Account Fee
185,House District 01,Javier Mabrey,2.0,3/31/22,Firstbank,,CO,,Bank Fees,Fee For First Bank
186,House District 01,Javier Mabrey,22.75,3/31/22,Actblue,Somerville,MA,2144,Bank Fees,Act Blue Processing Fees
187,House District 01,Javier Mabrey,0.99,4/3/22,Actblue,Somerville,MA,2144,Bank Fees,Act Blue Processing Fees
188,House District 01,Javier Mabrey,575.0,4/4/22,Center On Colfax,,CO,,Advertising,Registration For Pride Parade
189,House District 01,Javier Mabrey,5.0,4/4/22,Firstbank,,CO,,Office Equipment & Supplies,Fee For Internet Bill Pay For April
190,House District 01,Javier Mabrey,122.84,4/4/22,Scale To Win,,CA,,Fundraising Expenses,Scale To Win Fee
191,House District 01,Javier Mabrey,750.0,4/4/22,Emily  Sandoval,Longmont,CO,80504,Employee Services,Payment To Emily Sandoval - For Graphic Design And Website
192,House District 01,Javier Mabrey,-575.0,4/4/22,Center On Colfax,,CO,,Advertising,Offset Due To Update Of Filed Item - Registration For Pride Parade
193,House District 01,Javier Mabrey,575.0,4/4/22,Center On Colfax,Denver,CO,80218,Advertising,Registration For Pride Parade
194,House District 01,Javier Mabrey,3.57,4/10/22,Actblue,Somerville,MA,2144,Bank Fees,Act Blue Processing Fees
195,House District 01,Javier Mabrey,12.99,4/11/22,Canva,,CO,,Office Equipment & Supplies,Canva Account Fee
196,House District 01,Javier Mabrey,2.1,4/13/22,Firstbank,,CO,,Bank Fees,
197,House District 01,Javier Mabrey,70.0,4/13/22,Emall Octopus,London,UK,EC2A 4NE,Office Equipment & Supplies,
198,House District 01,Javier Mabrey,-70.0,4/13/22,Emall Octopus,London,UK,EC2A 4NE,Office Equipment & Supplies,Offset Due To Update Of Filed Item
199,House District 01,Javier Mabrey,70.0,4/13/22,Emall Octopus,London,UK,EC2A 4NE,Office Equipment & Supplies,
200,House District 01,Javier Mabrey,1.6,4/17/22,Actblue,Somerville,MA,2144,Bank Fees,Act Blue Processing Fees
201,House District 01,Javier Mabrey,250.0,4/18/22,David  Ortiz,Littleton,CO,80121,Miscellaneous,Refund To David Ortiz
202,House District 01,Javier Mabrey,500.0,4/19/22,Raffi  Mercuri,,CO,,Employee Services,Payment To Raffi Mercuri
203,House District 01,Javier Mabrey,8.32,4/24/22,Actblue,Somerville,MA,2144,Bank Fees,Act Blue Processing Fees
204,House District 01,Javier Mabrey,22.0,4/25/22,Godaddy .Com,Scottsdale,AZ,85260,Office Equipment & Supplies,Go Daddy Website Domain
205,House District 01,Javier Mabrey,-22.0,4/25/22,Godaddy .Com,Scottsdale,AZ,85260,Office Equipment & Supplies,Offset Due To Update Of Filed Item - Go Daddy Website Domain
206,House District 01,Javier Mabrey,22.0,4/25/22,Godaddy .Com,Scottsdale,AZ,85260,Office Equipment & Supplies,Go Daddy Website Domain
207,House District 01,Javier Mabrey,146.32,4/27/22,Blue Pan Pizza,Denver,CO,80212,"Food, Beverages and Meals",Pizza Order For Joint Fundraiser
208,House District 01,Javier Mabrey,-146.32,4/27/22,Blue Pan Pizza,Denver,CO,80212,"Food, Beverages and Meals",Offset Due To Update Of Filed Item - Pizza Order For Joint Fundraiser
209,House District 01,Javier Mabrey,146.32,4/27/22,Blue Pan Pizza,Denver,CO,80212,"Food, Beverages and Meals",Pizza Order For Joint Fundraiser
210,House District 01,Javier Mabrey,51.21,4/28/22,Pho Duy,Denver,CO,80219,"Food, Beverages and Meals",Campaign Meeting
211,House District 01,Javier Mabrey,10.0,4/29/22,Mailchimp,,CO,,Office Equipment & Supplies,Email List Management
212,House District 01,Javier Mabrey,90.0,5/2/22,James  Mabrey,Dallas,TX,75225,Fundraising Expenses,Check To Refund Javier For Purchasing Tickets To The Denver Young Democrats Event At Governor'S Mansion.
213,House District 01,Javier Mabrey,2.0,5/2/22,Firstbank,Lakewood,CO,80226,Bank Fees,Banking Fee
214,House District 01,Javier Mabrey,5.0,5/2/22,Firstbank,Lakewood,CO,80226,Bank Fees,Internet Bill Pay Fee
215,House District 01,Javier Mabrey,20.0,5/9/22,Time Park Llc Lot 20,Denver,CO,,Travel & Lodging,Parking For Cinco De Mayo Event Downtown
216,House District 01,Javier Mabrey,6.49,5/9/22,Canva,,CO,,Office Equipment & Supplies,Graphic Design Software
217,House District 01,Javier Mabrey,1250.0,5/16/22,Kayla  Frawley,Denver,CO,80238,Employee Services,Payment To Kayla Frawley - Campaign Manager
218,House District 01,Javier Mabrey,103.45,5/17/22,Denver Democratic Central Committee,Denver,CO,80209,Fundraising Expenses,Cost For Hd1 Chili Cook Off Ticket
219,House District 01,Javier Mabrey,100.0,5/17/22,Denver Democratic Central Committee,Denver,CO,80209,Fundraising Expenses,Cost For Hd1 Chili Cook Off Ticket
220,House District 01,Javier Mabrey,7.55,5/22/22,Act Blue,Somerville,MA,02144-3132,Bank Fees,Act Blue Fee For Contributions For Reporting Period
221,House District 01,Javier Mabrey,29.34,5/23/22,Whole Foods,Lakewood,CO,80226,"Food, Beverages and Meals",Cost For Hd1 Chili Cook Off
222,House District 01,Javier Mabrey,14.88,5/23/22,Hudson Hill,Denver,CO,80203,"Food, Beverages and Meals",Campaign Meeting
223,House District 01,Javier Mabrey,41.83,5/23/22,Jaimes,Denver,CO,80227,"Food, Beverages and Meals",Campaign Meeting
224,House District 01,Javier Mabrey,22.0,5/25/22,Godaddy .Com,Scottsdale,AZ,85260,Office Equipment & Supplies,
225,House District 01,Javier Mabrey,120.0,5/25/22,One Colorado,Denver,CO,80203,Fundraising Expenses,Ticket To One Colorado Event
226,House District 01,Javier Mabrey,7.02,5/26/22,"2190 S Platte River Dr,",Denver,CO,80223,Office Equipment & Supplies,Campaign Meeting
227,House District 01,Javier Mabrey,2.0,5/31/22,First Bank,Lakewood,CO,80235,Bank Fees,
228,House District 01,Javier Mabrey,10.48,5/31/22,Mail Chimp,,CO,,Office Equipment & Supplies,
229,House District 01,Javier Mabrey,5.0,6/1/22,First Bank,Lakewood,CO,80235,Office Equipment & Supplies,
230,House District 01,Javier Mabrey,6.35,6/5/22,Actblue,Somerville,MA,2144,Fundraising Expenses,
231,House District 01,Javier Mabrey,100.0,6/8/22,The Center On Colfax,Denver,CO,80218,Miscellaneous,Pride Registration Addition Event Fee
232,House District 01,Javier Mabrey,6.49,6/9/22,Canva,Austin,TX,78701,Office Equipment & Supplies,Infographic Costs
233,House District 01,Javier Mabrey,14.67,6/13/22,Act Blue,Somerville,MA,02144-3132,Fundraising Expenses,"Act Blue Fee, Two Payments 6.35, 8.32"
234,House District 01,Javier Mabrey,2.1,6/13/22,First Bank,Lakewood,CO,80235,Bank Fees,
235,House District 01,Javier Mabrey,70.0,6/13/22,Emall Octopus,London,UK,EC2A 4NE,Office Equipment & Supplies,Email List Serve Service
236,House District 01,Javier Mabrey,80.19,6/13/22,Pho Duy,Denver,CO,80219,"Food, Beverages and Meals",
237,House District 01,Javier Mabrey,-14.67,6/13/22,Act Blue,Somerville,MA,02144-3132,Fundraising Expenses,"Offset Due To Update Of Filed Item - Act Blue Fee, Two Payments 6.35, 8.32"
238,House District 01,Javier Mabrey,14.67,6/13/22,Act Blue,Somerville,MA,02144-3132,Fundraising Expenses,"Act Blue Fee, Two Payments 6.35, 8.32"
239,House District 01,Javier Mabrey,11.49,6/19/22,Act Blue,Somerville,MA,02144-3132,Contributions,"Two Act Blue Fees, 1 - $10.89, 6/12, 2- .60, 6/19."
240,House District 01,Javier Mabrey,600.0,6/21/22,Alison  Egbers,Denver,CO,80210,Consultant & Professional Services,"Check To Staffer, Alison Egbers For Social Media, Communications And Campaign Support."
241,House District 01,Javier Mabrey,36.0,6/21/22,Charlieís Smoked Meats,Denver,CO,80220,"Food, Beverages and Meals",Campaign Meeting
242,House District 01,Javier Mabrey,6.17,6/22/22,Molecule Effect,Denver,CO,80204,"Food, Beverages and Meals",
243,House District 01,Javier Mabrey,100.0,6/24/22,Cobalt Advocates Independent Expenditure Committee,Denver,CO,80222,Miscellaneous,Tickets To Cobalt End Of Legislative Session Event
244,House District 01,Javier Mabrey,3.03,6/26/22,Actblue,Somerville,MA,2144,Fundraising Expenses,
245,House District 01,Javier Mabrey,22.0,6/27/22,Godaddy .Com,Scottsdale,AZ,85260,Office Equipment & Supplies,
246,House District 01,Javier Mabrey,71.37,6/27/22,Lucy'S Ethiopian Restaurant,Denver,CO,80220,"Food, Beverages and Meals",Meal For Campaign Volunteers
247,House District 01,Javier Mabrey,52.81,6/28/22,Menya Noodle Bar,"Denver,",CO,80202,"Food, Beverages and Meals",Meal For Campaign Interns
248,House District 01,Javier Mabrey,10.48,6/28/22,Mailchimp,,,,Office Equipment & Supplies,
249,House District 01,Javier Mabrey,1.99,6/28/22,Actblue,Somerville,MA,2144,Fundraising Expenses,
250,House District 01,Javier Mabrey,17.17,6/29/22,Santiago Mexican Restuarant,Denver,CO,80260,"Food, Beverages and Meals",Snacks For Volunteers
251,House District 01,Javier Mabrey,19.44,6/29/22,Lowry Beer Garden,"Denver,",CO,80230,"Food, Beverages and Meals",
252,House District 01,Javier Mabrey,2.0,6/30/22,First Bank,Lakewood,CO,80235,Bank Fees,
253,House District 01,Javier Mabrey,0.99,6/30/22,Actblue,Somerville,MA,2144,Fundraising Expenses,
254,House District 01,Javier Mabrey,5.0,7/1/22,First Bank,Lakewood,CO,80235,Bank Fees,
255,House District 01,Javier Mabrey,-110.0,7/7/21,United States Postal Service,,CO,,Office Equipment & Supplies,Offset Due To Update Of Filed Item - Stamps
256,House District 01,Javier Mabrey,110.0,7/7/21,United States Postal Service,Denver,CO,80219,Office Equipment & Supplies,Stamps
257,House District 01,Javier Mabrey,8.11,7/10/22,Actblue,Somerville,MA,2144,Fundraising Expenses,
258,House District 01,Javier Mabrey,6.49,7/11/22,Canva,Austin,TX,78701,Office Equipment & Supplies,
259,House District 01,Javier Mabrey,-1.95,7/13/21,First Bank,Lakewod,CO,,Bank Fees,Offset Due To Update Of Filed Item
260,House District 01,Javier Mabrey,1.95,7/13/21,Firstbank,Lakewood,CO,80235,Bank Fees,
261,House District 01,Javier Mabrey,21.76,7/13/22,Mad Greens Salads,"Denver,",CO,80202,"Food, Beverages and Meals",
262,House District 01,Javier Mabrey,70.0,7/13/22,Emall Octopus,London,UK,EC2A 4NE,Office Equipment & Supplies,
263,House District 01,Javier Mabrey,2.1,7/13/22,Firstbank,Lakewood,CO,80235,Bank Fees,
264,House District 01,Javier Mabrey,750.0,7/14/22,Alison  Egbers,Denver,CO,80210,Consultant & Professional Services,
265,House District 01,Javier Mabrey,1.0,7/14/22,Actblue,Somerville,MA,2144,Fundraising Expenses,
266,House District 01,Javier Mabrey,1.0,7/14/22,Actblue,Somerville,MA,2144,Fundraising Expenses,
267,House District 01,Javier Mabrey,0.4,7/17/22,Actblue,Somerville,MA,2144,Fundraising Expenses,
268,House District 01,Javier Mabrey,10.46,7/19/22,Kaladi Brothers Coffee,Denver,CO,80210,"Food, Beverages and Meals",
269,House District 01,Javier Mabrey,4171.32,7/21/22,C & D Printing,Denver,CO,80212,Advertising,Campaign Mailer For The Primary
270,House District 01,Javier Mabrey,6.17,7/22/22,The Molecule Effect,"Denver,",CO,80204,"Food, Beverages and Meals",
271,House District 01,Javier Mabrey,37.48,7/22/22,Saigon Terrace,Denver,CO,80222,"Food, Beverages and Meals",
272,House District 01,Javier Mabrey,22.0,7/25/22,Godaddy .Com,Scottsdale,AZ,85260,Office Equipment & Supplies,
273,House District 01,Javier Mabrey,-20.95,7/26/21,Go Daddy,,,,Advertising,Offset Due To Update Of Filed Item - Website
274,House District 01,Javier Mabrey,20.95,7/26/21,Go Daddy,Scottsdale,AZ,85260,Advertising,Website
275,House District 01,Javier Mabrey,10.48,7/28/22,Mailchimp,Atlanta,GA,30308,Office Equipment & Supplies,
276,House District 01,Javier Mabrey,2.0,7/29/22,Firstbank,Lakewood,CO,80235,Bank Fees,
277,House District 01,Javier Mabrey,18.78,7/31/22,Actblue,Somerville,MA,2144,Fundraising Expenses,
278,House District 01,Javier Mabrey,5.0,8/1/22,Firstbank,Lakewood,CO,80235,Bank Fees,Fee For Internet Bill Pay
279,House District 01,Javier Mabrey,-5.0,8/2/21,First Bank,Lakewod,CO,,Bank Fees,Offset Due To Update Of Filed Item
280,House District 01,Javier Mabrey,5.0,8/2/21,Firstbank,Lakewood,CO,80235,Bank Fees,
281,House District 01,Javier Mabrey,400.0,8/3/22,Jessica  Broom,Denver,CO,80204,Consultant & Professional Services,Graphic Design
282,House District 01,Javier Mabrey,1.19,8/7/22,Actblue,Somerville,MA,2144,Fundraising Expenses,
283,House District 01,Javier Mabrey,40.35,8/8/22,Pho Duy,Denver,CO,80219,"Food, Beverages and Meals",Campaign Meeting
284,House District 01,Javier Mabrey,12.29,8/8/22,Kaladi Brothers Coffee,Denver,CO,80210,"Food, Beverages and Meals",Campaign Meeting
285,House District 01,Javier Mabrey,6.49,8/9/22,Canva,Austin,TX,78701,Office Equipment & Supplies,Design Software
286,House District 01,Javier Mabrey,750.0,8/9/22,Alison  Egbers,Denver,CO,80210,Consultant & Professional Services,
287,House District 01,Javier Mabrey,54.0,8/12/22,Denver Parks & Rec.,Denver,CO,80219,Office Equipment & Supplies,Renting Community Space
288,House District 01,Javier Mabrey,-1.95,8/13/21,First Bank,Lakewod,CO,,Bank Fees,Offset Due To Update Of Filed Item
289,House District 01,Javier Mabrey,1.95,8/13/21,First Bank,Lakewood,CO,80235,Bank Fees,
290,House District 01,Javier Mabrey,1.12,8/14/22,Actblue,Somerville,MA,2144,Fundraising Expenses,
291,House District 01,Javier Mabrey,70.0,8/15/22,Emall Octopus,London,UK,EC2A 4NE,Office Equipment & Supplies,
292,House District 01,Javier Mabrey,2.1,8/15/22,First Bank,Lakewood,CO,80235,Bank Fees,
293,House District 01,Javier Mabrey,16.89,8/15/22,Wal-Mart,Denver,CO,80219,"Food, Beverages and Meals",Office Supplies
294,House District 01,Javier Mabrey,57.73,8/15/22,King Soopers,Denver,CO,80219,"Food, Beverages and Meals",Snacks For Volunteers
295,House District 01,Javier Mabrey,1246.53,8/17/22,C & D Printing,Denver,CO,80212,Office Equipment & Supplies,Campaign Lit
296,House District 01,Javier Mabrey,0.4,8/21/22,Actblue,Somerville,MA,2144,Bank Fees,
297,House District 01,Javier Mabrey,-20.95,8/25/21,Go Daddy,,,,Advertising,Offset Due To Update Of Filed Item
298,House District 01,Javier Mabrey,20.95,8/25/21,Go Daddy,Scottsdale,AZ,85260,Advertising,
299,House District 01,Javier Mabrey,22.0,8/25/22,Godaddy .Com,Scottsdale,AZ,85260,Office Equipment & Supplies,Website Maintenance
300,House District 01,Javier Mabrey,1.99,8/28/22,Actblue,Somerville,MA,2144,Fundraising Expenses,
301,House District 01,Javier Mabrey,10.48,8/29/22,Mailchimp,Atlanta,GA,30308,Office Equipment & Supplies,Email List Serve
302,House District 01,Javier Mabrey,56.32,8/30/22,Voodoo Doughnut,Denver,CO,80209,"Food, Beverages and Meals",
303,House District 01,Javier Mabrey,2.0,8/31/22,Firstbank,Lakewood,CO,80235,Bank Fees,Fee For Business Card
304,House District 01,Javier Mabrey,-5.0,9/1/21,First Bank,Lakewod,CO,,Bank Fees,Offset Due To Update Of Filed Item
305,House District 01,Javier Mabrey,5.0,9/1/21,First Bank,Lakewood,CO,80235,Bank Fees,
306,House District 01,Javier Mabrey,-8.68,9/1/21,King Soopers,Lakewood,CO,,Office Equipment & Supplies,Offset Due To Update Of Filed Item
307,House District 01,Javier Mabrey,8.68,9/1/21,King Soopers,Denver,CO,80227,Office Equipment & Supplies,
308,House District 01,Javier Mabrey,-150.8,9/1/21,United States Postal Service,,CO,,Office Equipment & Supplies,Offset Due To Update Of Filed Item - Stamps
309,House District 01,Javier Mabrey,150.8,9/1/21,United States Postal Service,Denver,CO,80219,Office Equipment & Supplies,Stamps
310,House District 01,Javier Mabrey,5.0,9/1/22,Firstbank,Lakewood,CO,80235,Bank Fees,
311,House District 01,Javier Mabrey,-25.71,9/2/21,Office Depot,,CO,,Office Equipment & Supplies,Offset Due To Update Of Filed Item
312,House District 01,Javier Mabrey,25.71,9/2/21,Office Depot,Lakewood,CO,80226,Office Equipment & Supplies,
313,House District 01,Javier Mabrey,850.0,9/2/22,Alison  Egbers,Denver,CO,80210,Consultant & Professional Services,
314,House District 01,Javier Mabrey,-12.99,9/9/21,Canva,,CO,,Office Equipment & Supplies,Offset Due To Update Of Filed Item
315,House District 01,Javier Mabrey,12.99,9/9/21,Canva,Austin,TX,78701,Office Equipment & Supplies,
316,House District 01,Javier Mabrey,6.49,9/9/22,Canva,Austin,TX,78701,Office Equipment & Supplies,
317,House District 01,Javier Mabrey,1650.0,9/12/22,Denver Democratic Central Committee,Denver,CO,80209,Entertainment,Purchasing A Table For The Annual Dinner
318,House District 01,Javier Mabrey,-65.0,9/13/21,Email Octopus,London,UK,EC2A 4NE,Advertising,Offset Due To Update Of Filed Item
319,House District 01,Javier Mabrey,-1.95,9/13/21,First Bank,Lakewod,CO,,Bank Fees,Offset Due To Update Of Filed Item
320,House District 01,Javier Mabrey,1.95,9/13/21,First Bank,Lakewood,CO,80235,Bank Fees,
321,House District 01,Javier Mabrey,70.0,9/13/22,Email Octopus,London,UK,EC2A 4NE,Fundraising Expenses,
322,House District 01,Javier Mabrey,2.1,9/13/22,Firstbank,Lakewood,CO,80235,Bank Fees,
323,House District 01,Javier Mabrey,48.0,9/14/22,Centro Nuvisa Club De Nutricion,Denver,CO,80219,"Food, Beverages and Meals",
324,House District 01,Javier Mabrey,1000.0,9/15/22,Alison  Egbers,Denver,CO,80210,Consultant & Professional Services,
325,House District 01,Javier Mabrey,414.81,9/16/22,C & D Printing,Denver,CO,80212,Office Equipment & Supplies,
326,House District 01,Javier Mabrey,33.55,9/21/22,Pho Duy,Denver,CO,80219,"Food, Beverages and Meals",
327,House District 01,Javier Mabrey,22.0,9/26/22,Godaddy .Com,Scottsdale,AZ,85260,Office Equipment & Supplies,
328,House District 01,Javier Mabrey,10.48,9/28/22,Mailchimp,Atlanta,GA,30308,Office Equipment & Supplies,
329,House District 01,Javier Mabrey,37.17,9/30/22,Actblue,Somerville,MA,2144,Fundraising Expenses,
330,House District 01,Javier Mabrey,2.0,9/30/22,Firstbank,Lakewood,CO,80235,Bank Fees,
331,House District 01,Javier Mabrey,5.0,10/1/21,First Bank,Lakewod,CO,,Bank Fees,
332,House District 01,Javier Mabrey,19.77,10/3/21,Actblue,Somerville,MA,2144,Fundraising Expenses,
333,House District 01,Javier Mabrey,6000.0,10/6/22,Compete Digital Llc,Washington,DC,20003,Advertising,
334,House District 01,Javier Mabrey,2500.0,10/6/22,Heart + Mind Media Llc,Denver,CO,80207,Consultant & Professional Services,
335,House District 01,Javier Mabrey,6.74,10/9/22,Actblue,Somerville,MA,2144,Fundraising Expenses,
336,House District 01,Javier Mabrey,2.38,10/10/21,Actblue,Somerville,MA,2144,Fundraising Expenses,
337,House District 01,Javier Mabrey,6.49,10/11/22,Canva,Austin,TX,78701,Office Equipment & Supplies,
338,House District 01,Javier Mabrey,65.0,10/13/21,Emall Octopus,London,UK,EC2A 4NE,Other,Email List Maintenance
339,House District 01,Javier Mabrey,1.95,10/13/21,First Bank,Lakewod,CO,,Bank Fees,
340,House District 01,Javier Mabrey,1000.0,10/13/22,Alison  Egbers,Denver,CO,80210,Consultant & Professional Services,
341,House District 01,Javier Mabrey,2.1,10/13/22,First Bank,Lakewood,CO,80235,Bank Fees,
342,House District 01,Javier Mabrey,70.0,10/13/22,Emall Octopus,London,UK,EC2A 4NE,Fundraising Expenses,
343,House District 01,Javier Mabrey,1.0,10/16/22,Actblue,Somerville,MA,2144,Fundraising Expenses,
344,House District 01,Javier Mabrey,117.99,10/17/21,Actblue,Somerville,MA,2144,Fundraising Expenses,
345,House District 01,Javier Mabrey,8000.0,10/18/22,Compete Digital Llc,Washington,DC,20003,Advertising,This Expenditure Was For Advertising Online.
346,House District 01,Javier Mabrey,12.99,10/21/21,Canva,,CO,,Office Equipment & Supplies,
347,House District 01,Javier Mabrey,6031.36,10/21/22,C & D Printing,Denver,CO,80212,Advertising,Mailer
348,House District 01,Javier Mabrey,0.4,10/23/22,Actblue,Somerville,MA,2144,Fundraising Expenses,
349,House District 01,Javier Mabrey,15.63,10/24/21,Actblue,Somerville,MA,2144,Fundraising Expenses,
350,House District 01,Javier Mabrey,20.95,10/25/21,Godaddy .Com,Scottsdale,AZ,85260,Advertising,
351,House District 01,Javier Mabrey,1850.0,10/25/22,Alison  Egbers,Denver,CO,80210,Consultant & Professional Services,
352,House District 01,Javier Mabrey,25.0,10/25/22,Godaddy .Com,Scottsdale,AZ,85260,Office Equipment & Supplies,
353,House District 01,Javier Mabrey,10.48,10/28/22,Mailchimp,Atlanta,GA,30308,Miscellaneous,
354,House District 01,Javier Mabrey,1000.0,10/28/22,Compete Digital Llc,Washington,DC,20003,Consultant & Professional Services,
355,House District 01,Javier Mabrey,2.0,10/28/22,Firstbank,Lakewood,CO,80235,Bank Fees,
356,House District 01,Javier Mabrey,3.37,10/31/21,Actblue,Somerville,MA,2144,Fundraising Expenses,
357,House District 01,Javier Mabrey,5.0,11/1/21,First Bank,Lakewod,CO,,Bank Fees,
358,House District 01,Javier Mabrey,5.0,11/1/22,Firstbank,Lakewood,CO,80235,Bank Fees,
359,House District 01,Javier Mabrey,1000.0,11/2/21,Curt  Baker,Denver,CO,80206,Consultant & Professional Services,Campaign Consulting
360,House District 01,Javier Mabrey,1000.0,11/2/22,Colorado Democratic Party Political Committee,Denver,CO,80203,Contributions,
361,House District 01,Javier Mabrey,812.86,11/3/22,C & D Printing,Denver,CO,80212,Miscellaneous,
362,House District 01,Javier Mabrey,200.0,11/3/22,Natalia  Ruiz,,CO,,Consultant & Professional Services,Translation Services
363,House District 01,Javier Mabrey,14.26,11/4/22,Kaladi Brothers Coffee,Denver,CO,80210,"Food, Beverages and Meals",
364,House District 01,Javier Mabrey,420.0,11/5/22,Usps,Lakewood,CO,80226,Office Equipment & Supplies,
365,House District 01,Javier Mabrey,17.78,11/7/21,Actblue,Somerville,MA,2144,Fundraising Expenses,
366,House District 01,Javier Mabrey,231.6,11/7/22,C & D Printing,Denver,CO,80212,Office Equipment & Supplies,
367,House District 01,Javier Mabrey,12.99,11/9/21,Canva,,CO,,Office Equipment & Supplies,
368,House District 01,Javier Mabrey,6.49,11/9/22,Canva,Austin,TX,78701,Office Equipment & Supplies,
369,House District 01,Javier Mabrey,5.54,11/14/21,Actblue,Somerville,MA,2144,Fundraising Expenses,
370,House District 01,Javier Mabrey,70.0,11/14/22,Email Octopus,London,UK,EC2A 4NE,Office Equipment & Supplies,
371,House District 01,Javier Mabrey,2.1,11/14/22,Firstbank,Lakewood,CO,80235,Bank Fees,
372,House District 01,Javier Mabrey,65.0,11/15/21,Emall Octopus,London,UK,EC2A 4NE,Advertising,
373,House District 01,Javier Mabrey,1.95,11/15/21,First Bank,Lakewod,CO,,Bank Fees,
374,House District 01,Javier Mabrey,15.62,11/21/21,Actblue,Somerville,MA,2144,Fundraising Expenses,
375,House District 01,Javier Mabrey,3500.0,11/23/22,Alison  Egbers,Denver,CO,80210,Consultant & Professional Services,
376,House District 01,Javier Mabrey,22.0,11/25/22,Godaddy .Com,Scottsdale,AZ,85260,Office Equipment & Supplies,
377,House District 01,Javier Mabrey,20.95,11/26/21,Godaddy .Com,Scottsdale,AZ,85260,Advertising,
378,House District 01,Javier Mabrey,15.23,11/28/21,Actblue,Somerville,MA,2144,Fundraising Expenses,
379,House District 01,Javier Mabrey,10.48,11/28/22,Mailchimp,Atlanta,GA,30308,Office Equipment & Supplies,
380,House District 01,Javier Mabrey,544.79,11/28/22,Stoney'S Bar And Grill,Denver,CO,80203,"Food, Beverages and Meals",
381,House District 01,Javier Mabrey,2.0,11/30/22,Firstbank,Lakewood,CO,80235,Bank Fees,
382,House District 01,Javier Mabrey,5.0,12/1/21,First Bank,Lakewod,CO,,Bank Fees,
383,House District 01,Javier Mabrey,5.0,12/1/22,First Bank,Lakewood,CO,80235,Bank Fees,
384,House District 01,Javier Mabrey,16.86,12/4/22,Actblue,Somerville,MA,2144,Fundraising Expenses,
385,House District 01,Javier Mabrey,63.28,12/5/21,Actblue,Somerville,MA,2144,Fundraising Expenses,
386,House District 01,Javier Mabrey,38.19,12/5/22,El Sampa Taqueria,Denver,CO,80223,"Food, Beverages and Meals",
387,House District 01,Javier Mabrey,178.98,12/6/22,Frontier Airlines,Denver,CO,80239,Travel & Lodging,
388,House District 01,Javier Mabrey,500.0,12/7/22,Kelly  Fleming,Denver,CO,80203,Consultant & Professional Services,
389,House District 01,Javier Mabrey,12.99,12/9/21,Canva,,CO,,Office Equipment & Supplies,
390,House District 01,Javier Mabrey,94.54,12/12/21,Actblue,Somerville,MA,2144,Fundraising Expenses,
391,House District 01,Javier Mabrey,65.0,12/13/21,Email Octopus,London,UK,EC2A 4NE,Advertising,
392,House District 01,Javier Mabrey,1.95,12/13/21,First Bank,Lakewod,CO,,Bank Fees,
393,House District 01,Javier Mabrey,1250.0,12/13/21,Curt  Baker,Denver,CO,80206,Consultant & Professional Services,Campaign Consulting
394,House District 01,Javier Mabrey,32.98,12/16/21,Office Depot,,CO,,Office Equipment & Supplies,
395,House District 01,Javier Mabrey,6.47,12/17/21,Kaladi Brothers Coffee,Denver,CO,80210,"Food, Beverages and Meals",
396,House District 01,Javier Mabrey,13.65,12/19/21,Actblue,Somerville,MA,2144,Fundraising Expenses,
397,House District 01,Javier Mabrey,39.74,12/20/21,Jaime'S Mexican Restaurant,Denver,CO,80227,"Food, Beverages and Meals",
398,House District 01,Javier Mabrey,9.7,12/20/21,Kaladi Brothers Coffee,Denver,CO,80210,"Food, Beverages and Meals",
399,House District 01,Javier Mabrey,1.0,12/23/21,Public-Works Parking Meter,Denver,CO,,Travel & Lodging,
400,House District 01,Javier Mabrey,10.88,12/26/21,Actblue,Somerville,MA,2144,Fundraising Expenses,
401,House District 01,Javier Mabrey,20.95,12/27/21,Godaddy .Com,Scottsdale,AZ,85260,Advertising,
402,House District 01,Javier Mabrey,12.86,12/31/21,Actblue,Somerville,MA,2144,Fundraising Expenses,
403,House District 02,Steven Woodrow,31.6,1/2/22,Actblue,Somerville,MA,2144,Bank Fees,
404,House District 02,Steven Woodrow,19.99,1/13/22,Linkedphone Llc,New York,NY,10019,Telephone,
405,House District 02,Steven Woodrow,17.78,1/16/22,Actblue,Somerville,MA,2144,Bank Fees,
406,House District 02,Steven Woodrow,32.48,1/20/22,The Rocket Science Group Llc,Atlanta,GA,30308,Office Equipment & Supplies,Mailchimp
407,House District 02,Steven Woodrow,21.05,1/26/22,Amalgamated Bank,New York,NY,10011,Bank Fees,
408,House District 02,Steven Woodrow,16.3,1/28/22,"Zoom Video Communications, Inc.",San Jose,CA,95113,Office Equipment & Supplies,
409,House District 02,Steven Woodrow,2.18,1/30/22,Actblue,Somerville,MA,2144,Bank Fees,
410,House District 02,Steven Woodrow,19.99,2/13/22,Linkedphone Llc,New York,NY,10019,Telephone,
411,House District 02,Steven Woodrow,35.64,2/22/22,The Rocket Science Group Llc,Atlanta,GA,30308,Office Equipment & Supplies,Mailchimp
412,House District 02,Steven Woodrow,21.26,2/25/22,Amalgamated Bank,New York,NY,10011,Bank Fees,
413,House District 02,Steven Woodrow,2.18,2/27/22,Actblue,Somerville,MA,2144,Bank Fees,
414,House District 02,Steven Woodrow,16.3,2/28/22,"Zoom Video Communications, Inc.",San Jose,CA,95113,Office Equipment & Supplies,
415,House District 02,Steven Woodrow,15.8,3/6/22,Actblue,Somerville,MA,2144,Bank Fees,
416,House District 02,Steven Woodrow,7.9,3/13/22,Actblue,Somerville,MA,2144,Bank Fees,
417,House District 02,Steven Woodrow,19.99,3/13/22,Linkedphone Llc,New York,NY,10019,Telephone,
418,House District 02,Steven Woodrow,35.64,3/21/22,The Rocket Science Group Llc,Atlanta,GA,30308,Office Equipment & Supplies,Mailchimp
419,House District 02,Steven Woodrow,20.21,3/25/22,Amalgamated Bank,New York,NY,10011,Bank Fees,
420,House District 02,Steven Woodrow,0.2,3/27/22,Actblue,Somerville,MA,2144,Bank Fees,
421,House District 02,Steven Woodrow,16.3,3/28/22,"Zoom Video Communications, Inc.",San Jose,CA,95113,Office Equipment & Supplies,
422,House District 02,Steven Woodrow,0.8,4/10/22,Actblue,Somerville,MA,2144,Bank Fees,
423,House District 02,Steven Woodrow,19.99,4/13/22,Linkedphone Llc,New York,NY,10019,Telephone,
424,House District 02,Steven Woodrow,35.64,4/20/22,The Rocket Science Group Llc,Atlanta,GA,30308,Office Equipment & Supplies,Mailchimp
425,House District 02,Steven Woodrow,7.9,4/24/22,Actblue,Somerville,MA,2144,Bank Fees,
426,House District 02,Steven Woodrow,20.0,4/26/22,Amalgamated Bank,New York,NY,10011,Bank Fees,
427,House District 02,Steven Woodrow,16.3,4/26/22,"Zoom Video Communications, Inc.",San Jose,CA,95113,Office Equipment & Supplies,
428,House District 02,Steven Woodrow,0.2,5/1/22,Actblue,Somerville,MA,2144,Bank Fees,
429,House District 02,Steven Woodrow,30.65,5/4/22,Harland Clarke Corp.,San Antonio,TX,78256,Miscellaneous,
430,House District 02,Steven Woodrow,2500.0,5/11/22,Gisselle L Hernandez,Greeley,CO,80634,Employee Services,Cllaro Capitol Fellowship Program
431,House District 02,Steven Woodrow,19.99,5/12/22,Linkedphone Llc,New York,NY,10019,Office Equipment & Supplies,
432,House District 02,Steven Woodrow,150.0,5/19/22,Actblue,Somerville,MA,2144,Advertising,
433,House District 02,Steven Woodrow,35.64,5/20/22,The Rocket Science Group Llc,Atlanta,GA,30308,Advertising,
434,House District 02,Steven Woodrow,2900.0,5/25/22,Thomas D Nesmith,Little Rock,AR,72223,Employee Services,
435,House District 02,Steven Woodrow,21.05,5/26/22,Amalgamated Bank,New York,NY,10011,Bank Fees,
436,House District 02,Steven Woodrow,16.3,5/26/22,"Zoom Video Communications, Inc.",San Jose,CA,95113,Office Equipment & Supplies,
437,House District 02,Steven Woodrow,0.2,5/27/22,Actblue,Somerville,MA,2144,Bank Fees,
438,House District 02,Steven Woodrow,15.8,6/19/22,Actblue,Somerville,MA,2144,Bank Fees,
439,House District 02,Steven Woodrow,35.64,6/21/22,The Rocket Science Group Llc,Atlanta,GA,30308,Office Equipment & Supplies,
440,House District 02,Steven Woodrow,4.64,7/5/22,"Alphabet, Inc.",Mountain View,CA,94043,Advertising,
441,House District 02,Steven Woodrow,35.64,7/20/22,The Rocket Science Group Llc,Atlanta,GA,30308,Office Equipment & Supplies,Mailchimp
442,House District 02,Steven Woodrow,19.99,7/21/22,Linkedphone Llc,New York,NY,10019,Office Equipment & Supplies,
443,House District 02,Steven Woodrow,1133.0,7/25/22,Thomas D Nesmith,Little Rock,AR,72223,Employee Services,
444,House District 02,Steven Woodrow,16.3,7/26/22,"Zoom Video Communications, Inc.",San Jose,CA,95113,Office Equipment & Supplies,
445,House District 02,Steven Woodrow,20.63,7/26/22,Amalgamated Bank,New York,NY,10011,Bank Fees,
446,House District 02,Steven Woodrow,1272.4,7/26/22,Intermountain Jewish News,Denver,CO,80203,Advertising,
447,House District 02,Steven Woodrow,100.0,7/28/22,"Conservation Colorado, Inc.",Denver,CO,80203,Entertainment,Event Ticket
448,House District 02,Steven Woodrow,7.91,7/31/22,Actblue,Somerville,MA,2144,Bank Fees,
449,House District 02,Steven Woodrow,1200.0,8/18/22,Thomas D Nesmith,Little Rock,AR,72223,Employee Services,
450,House District 02,Steven Woodrow,19.99,8/22/22,Linkedphone Llc,New York,NY,10019,Office Equipment & Supplies,
451,House District 02,Steven Woodrow,35.64,8/22/22,The Rocket Science Group Llc,Atlanta,GA,30308,Office Equipment & Supplies,
452,House District 02,Steven Woodrow,20.0,8/26/22,Amalgamated Bank,New York,NY,10011,Bank Fees,
453,House District 02,Steven Woodrow,16.3,8/26/22,"Zoom Video Communications, Inc.",San Jose,CA,95113,Office Equipment & Supplies,
454,House District 02,Steven Woodrow,6.99,9/2/22,"Alphabet, Inc.",Mountain View,CA,94043,Advertising,
455,House District 02,Steven Woodrow,2000.0,9/6/22,Thomas D Nesmith,Little Rock,AR,72223,Employee Services,
456,House District 02,Steven Woodrow,1200.0,9/7/22,Thomas D Nesmith,Little Rock,AR,72223,Employee Services,
457,House District 02,Steven Woodrow,250.35,9/8/22,C&D Printing,Denver,CO,80212,Advertising,
458,House District 02,Steven Woodrow,160.37,9/8/22,C&D Printing,Denver,CO,80212,Advertising,
459,House District 02,Steven Woodrow,4.94,9/18/22,Actblue,Somerville,MA,2144,Bank Fees,
460,House District 02,Steven Woodrow,35.64,9/20/22,The Rocket Science Group Llc,Atlanta,GA,30308,Office Equipment & Supplies,
461,House District 02,Steven Woodrow,19.99,9/21/22,Linkedphone Llc,New York,NY,10019,Telephone,
462,House District 02,Steven Woodrow,0.4,9/25/22,Actblue,Somerville,MA,2144,Bank Fees,
463,House District 02,Steven Woodrow,16.3,9/26/22,"Zoom Video Communications, Inc.",San Jose,CA,95113,Office Equipment & Supplies,
464,House District 02,Steven Woodrow,21.05,9/29/22,Amalgamated Bank,New York,NY,10011,Bank Fees,
465,House District 02,Steven Woodrow,23.7,9/30/22,Actblue,Somerville,MA,2144,Bank Fees,
466,House District 02,Steven Woodrow,150.0,10/3/22,Christ Church United Methodist,Denver,CO,80206,Advertising,
467,House District 02,Steven Woodrow,8.51,10/3/22,"Alphabet, Inc.",Mountain View,CA,94043,Advertising,
468,House District 02,Steven Woodrow,2.8,10/9/22,Actblue,Somerville,MA,2144,Bank Fees,
469,House District 02,Steven Woodrow,50.0,10/12/22,Colorado Secretary Of State,Denver,CO,80290,Other,Late Filing Fees
470,House District 02,Steven Woodrow,50.0,10/12/22,Colorado Secretary Of State,Denver,CO,80290,Other,Late Filing Fee
471,House District 02,Steven Woodrow,176.08,10/17/22,"Squarespace, Inc.",New York City,NY,10014,Office Equipment & Supplies,
472,House District 02,Steven Woodrow,35.64,10/20/22,The Rocket Science Group Llc,Atlanta,GA,30308,Office Equipment & Supplies,
473,House District 02,Steven Woodrow,19.99,10/21/22,Linkedphone Llc,New York,NY,10019,Telephone,
474,House District 02,Steven Woodrow,50.0,10/25/22,Rebecca  Bourgeois,Denver,CO,80210,Employee Services,
475,House District 02,Steven Woodrow,16.3,10/26/21,"Zoom Video Communications, Inc.",San Jose,CA,95113,Office Equipment & Supplies,
476,House District 02,Steven Woodrow,16.3,10/26/22,"Zoom Video Communications, Inc.",San Jose,CA,95113,Office Equipment & Supplies,
477,House District 02,Steven Woodrow,4833.07,10/26/22,C&D Printing,Denver,CO,80212,Advertising,
478,House District 02,Steven Woodrow,10.87,10/30/22,Actblue,Somerville,MA,2144,Bank Fees,
479,House District 02,Steven Woodrow,11.07,10/31/21,Actblue,Somerville,MA,2144,Bank Fees,
480,House District 02,Steven Woodrow,1800.0,11/1/22,Thomas D Nesmith,Little Rock,AR,72223,Employee Services,
481,House District 02,Steven Woodrow,0.8,11/6/22,Actblue,Somerville,MA,2144,Bank Fees,
482,House District 02,Steven Woodrow,1.98,11/7/21,Actblue,Somerville,MA,2144,Bank Fees,
483,House District 02,Steven Woodrow,15.8,11/8/22,Actblue,Somerville,MA,2144,Bank Fees,
484,House District 02,Steven Woodrow,19.99,11/13/21,Linkedphone Llc,New York,NY,10019,Telephone,
485,House District 02,Steven Woodrow,150.0,11/14/21,Colorado Democratic Party,Denver,CO,80203,Travel & Lodging,
486,House District 02,Steven Woodrow,35.64,11/21/22,The Rocket Science Group Llc,Atlanta,GA,30308,Office Equipment & Supplies,Mailchimp
487,House District 02,Steven Woodrow,19.99,11/21/22,Linkedphone Llc,New York,NY,10019,Telephone,
488,House District 02,Steven Woodrow,32.48,11/22/21,The Rocket Science Group Llc,Atlanta,GA,30308,Office Equipment & Supplies,Mailchimp
489,House District 02,Steven Woodrow,23.99,11/23/22,Amalgamated Bank,New York,NY,10011,Bank Fees,
490,House District 02,Steven Woodrow,20.42,11/26/21,Amalgamated Bank,New York,NY,10011,Bank Fees,
491,House District 02,Steven Woodrow,16.3,11/26/21,"Zoom Video Communications, Inc.",San Jose,CA,95113,Office Equipment & Supplies,
492,House District 02,Steven Woodrow,0.2,11/28/21,Actblue,Somerville,MA,2144,Bank Fees,
493,House District 02,Steven Woodrow,16.3,11/28/22,"Zoom Video Communications, Inc.",San Jose,CA,95113,Telephone,
494,House District 02,Steven Woodrow,0.99,12/5/21,Actblue,Somerville,MA,2144,Bank Fees,
495,House District 02,Steven Woodrow,19.99,12/13/21,Linkedphone Llc,New York,NY,10019,Telephone,
496,House District 02,Steven Woodrow,80.98,12/19/21,Actblue,Somerville,MA,2144,Bank Fees,
497,House District 02,Steven Woodrow,32.48,12/20/21,The Rocket Science Group Llc,Atlanta,GA,30308,Office Equipment & Supplies,Mailchimp
498,House District 02,Steven Woodrow,134.3,12/26/21,Actblue,Somerville,MA,2144,Bank Fees,
499,House District 02,Steven Woodrow,21.26,12/27/21,Amalgamated Bank,New York,NY,10011,Bank Fees,
500,House District 02,Steven Woodrow,16.3,12/27/21,"Zoom Video Communications, Inc.",San Jose,CA,95113,Office Equipment & Supplies,
501,House District 02,Steven Woodrow,75.74,12/31/21,Actblue,Somerville,MA,2144,Bank Fees,
502,House District 02,Stephanie Wheeler,27.04,4/8/22,Staples,Colorado Springs,CO,80922,Advertising,Business Cards
503,House District 02,Stephanie Wheeler,44.2,4/18/22,Fiverr Inc,Tel Aviv,IS,6473409,Advertising,Campaign Logo
504,House District 02,Stephanie Wheeler,22.39,4/28/22,Zazzle Inc,Reno,NV,89521,Advertising,Nametag
505,House District 02,Stephanie Wheeler,3500.0,6/3/22,Dasnuve,Greenwood Village,CO,80111,Consultant & Professional Services,Website
506,House District 02,Stephanie Wheeler,58.0,6/22/22,United States Postal Service,Denver,CO,80210,Office Equipment & Supplies,100 Us Postage Stamps
507,House District 02,Stephanie Wheeler,2800.0,7/28/22,"Straightforward Communication, Llc",Littleton,CO,80128,Employee Services,
508,House District 02,Stephanie Wheeler,2000.0,8/17/22,"Straightforward Communication, Llc",Littleton,CO,80128,Employee Services,
509,House District 02,Stephanie Wheeler,1500.0,8/20/22,Trey  Taylor,,CO,,Fundraising Expenses,Deposit For Trey Taylor Country Music Artist For Campaign Event
510,House District 02,Stephanie Wheeler,1125.0,10/19/22,Field And Streets Strategies Llc,Billings,MT,59105,Advertising,Digital Media Advertising
511,House District 02,Stephanie Wheeler,964.05,10/20/22,Field And Streets Strategies Llc,Billings,MT,59105,Advertising,Targeted Text Messaging To District 2 Voters
512,House District 03,Meg Froelich,100.0,2/19/21,Zeke  Clark,Denver,CO,80206,Consultant & Professional Services,Computer Services
513,House District 03,Meg Froelich,1600.0,2/19/21,Brightstar Strategies,Grand Junction,CO,81057,Consultant & Professional Services,Strategy Services
514,House District 03,Meg Froelich,28.21,4/12/21,Einstein'S Bagels,Englewood,CO,80110,"Food, Beverages and Meals",Food For Vaccination Site
515,House District 03,Meg Froelich,154.01,4/12/21,Costco,Sheridan,CO,80110,"Food, Beverages and Meals",Food For Vaccination Site
516,House District 03,Meg Froelich,1500.0,4/15/21,Walter  Klapper,Greenwood Village,CO,80111,Consultant & Professional Services,Data Management
517,House District 03,Meg Froelich,29.93,4/19/21,Mailchimp,Atlanta,GA,30308,Miscellaneous,Email
518,House District 03,Meg Froelich,1500.0,4/29/21,Walter  Klapper,Greenwood Village,CO,80111,Consultant & Professional Services,Data Management
519,House District 03,Meg Froelich,300.0,5/10/21,Corinne  O'Doherty,Greenwood Village,CO,80111,Employee Services,Extra Hours
520,House District 03,Meg Froelich,29.23,5/18/21,Mailchimp,Atlanta,GA,30308,Miscellaneous,Email
521,House District 03,Meg Froelich,750.0,6/2/21,Ngpvan,Somerville,MA,2144,Miscellaneous,Data
522,House District 03,Meg Froelich,474.08,6/10/21,Hdpcf,Denver,CO,80203,Other,Replace Tents Damaged At Vaccine Site
523,House District 03,Meg Froelich,299.0,6/12/21,Dick'S Sporting Goods,Littleton,CO,80124,Miscellaneous,Tents To Replace Damaged Tents
524,House District 03,Meg Froelich,750.0,6/20/21,Ngpvan,Somerville,MA,2144,Miscellaneous,Data
525,House District 03,Meg Froelich,33.29,6/23/21,Corinne  O'Doherty,Greenwood Village,CO,80111,"Food, Beverages and Meals",Reimburse For Food
526,House District 03,Meg Froelich,6497.0,7/21/21,Superior Blue,Woodbridge,VA,22192,Other,Mailing Fees
527,House District 03,Meg Froelich,367.0,8/12/21,Walter  Kappler,Greenwood Village,CO,80111,Consultant & Professional Services,Data Management
528,House District 03,Meg Froelich,300.0,8/21/21,Aimee  Resnick,Centennial,CO,80112,Consultant & Professional Services,
529,House District 03,Meg Froelich,300.0,8/23/21,Meredith  Phillips,Aurora,CO,80015,Consultant & Professional Services,
530,House District 03,Meg Froelich,216.0,9/11/21,Employee Preferred Insurance,San Diego,CA,92123,Employee Services,
531,House District 03,Meg Froelich,156.0,1/12/21,Wix.Com,New York,NY,10014,Advertising,Website
532,House District 03,Meg Froelich,130.0,1/19/21,Usps,Englewood,CO,80110,Other,Post Office Box
533,House District 03,Meg Froelich,2.23,1/19/21,Mailchimp,Atlanta,GA,30308,Advertising,Email
534,House District 03,Meg Froelich,29.23,2/18/21,Mailchimp,Atlanta,GA,30308,Advertising,Email
535,House District 03,Meg Froelich,-100.0,2/19/21,Zeke  Clark,Denver,CO,80206,Consultant & Professional Services,Offset Due To Deletion Of Filed Item - Computer Services
536,House District 03,Meg Froelich,750.0,3/2/21,Ngpvan,Somerville,MA,2144,Miscellaneous,Data
537,House District 03,Meg Froelich,29.23,3/18/21,Mailchimp,Atlanta,GA,30308,Miscellaneous,Email
538,House District 03,Meg Froelich,250.0,4/4/22,Colorado Democratic Party,Denver,CO,80203,Fundraising Expenses,Voter File Access
539,House District 03,Meg Froelich,12294.0,4/12/22,Superior Blue,Woodbridge,VA,22192,Consultant & Professional Services,
540,House District 03,Meg Froelich,100.0,4/22/22,Suie  Tanner,Englewood,CO,80113,"Food, Beverages and Meals",Catering Event
541,House District 03,Meg Froelich,88.51,4/27/22,Actblue,Somerville,MA,2411,Fundraising Expenses,Fee For Fundraising Website.
542,House District 03,Meg Froelich,175.26,5/12/22,Act Blue,Somerville,MA,2144,Fundraising Expenses,Fee For Fundraising Website
543,House District 03,Meg Froelich,-74.17,5/16/21,Usps,Englewood,CO,80110,Returned Expenditure,"Unused Funds In A Prepaid Account, Account Closed. Refund Issued."
544,House District 03,Meg Froelich,188.87,5/24/22,Act Blue,Somerville,MA,2144,Fundraising Expenses,Fees For Fundraising Website
545,House District 03,Meg Froelich,18.77,6/8/22,Actblue,Somerville,MA,02144-0031,Bank Fees,
546,House District 03,Meg Froelich,639.5,6/8/22,The Bees Cheese,Littleton,CO,80123,"Food, Beverages and Meals",
547,House District 03,Meg Froelich,20.0,6/15/22,Denver Manager Of Finance,Denver,CO,80204,Other,Map Of Denver Portion Of The Hd3 District
548,House District 03,Meg Froelich,500.0,6/16/22,Aimee  Resnick,Centennial,CO,80112,Miscellaneous,Social Media Assistance
549,House District 03,Meg Froelich,1413.0,6/16/22,Blue Deal,Fairfax,VA,22031,Other,Yard Signs
550,House District 03,Meg Froelich,1610.0,6/16/22,Corinne  O'Doherty,Greenwood Village,CO,80111,Other,Administrative Assistance
551,House District 03,Meg Froelich,87.95,6/22/22,Actblue,Somerville,MA,02144-0031,Fundraising Expenses,
552,House District 03,Meg Froelich,1508.4,7/13/22,C&D Printing,Denver,CO,80212,Other,Mailing
553,House District 03,Meg Froelich,47.03,7/25/22,Act Blue,Somerville,MA,2144,Fundraising Expenses,
554,House District 03,Meg Froelich,100.0,8/8/22,Jana  Besore,Wichita,KA,67205,Other,Refund - Over Max Donation
555,House District 03,Meg Froelich,500.0,8/16/22,Aimee  Resnick,Centennial,CO,80112,Advertising,Social Media
556,House District 03,Meg Froelich,625.0,9/13/22,We Win Leadership Political Action Committee,Englewood,CO,80111,Contributions,
557,House District 03,Meg Froelich,120.2,9/14/22,Act Blue,Somerville,MA,2144,Fundraising Expenses,
558,House District 03,Meg Froelich,600.0,9/14/22,Democratic Party Of Denver,Denver,CO,80209,Advertising,Ad Purchase
559,House District 03,Meg Froelich,900.0,9/14/22,Corinne  O'Doherty,Greenwood Village,CO,80111,Miscellaneous,"Admin, Data Entry, Graphic Design, Volunteer Comms"
560,House District 03,Meg Froelich,3350.0,9/14/22,House Majjority Project,Denver,CO,80218,Contributions,
561,House District 03,Meg Froelich,70.37,9/24/22,King Soopers,Englewood,CO,80113,Miscellaneous,"King Soopers, Candy For Sheridan Celebrates Parade"
562,House District 03,Meg Froelich,173.0,9/26/22,Corinne  O'Doherty,Greenwood Village,CO,80111,Office Equipment & Supplies,
563,House District 03,Meg Froelich,35.29,9/30/22,Act Blue,Somerville,MA,2144,Bank Fees,
564,House District 03,Meg Froelich,4446.92,10/1/21,Trublu Politics,Ellicott City,MD,21042,Advertising,Mailers
565,House District 03,Meg Froelich,1000.0,10/3/22,Laura  Chapin,Lakewood,CO,80226,Consultant & Professional Services,
566,House District 03,Meg Froelich,200.0,10/10/22,David  Hatfiield,Frisco,CO,80443,Other,Refund Of Over Max Contribution
567,House District 03,Meg Froelich,1600.0,10/12/22,Corinne  O'Doherty,Greenwood Village,CO,80111,Other,"Volunteer Recruitment, Graphic Design, Data Entry"
568,House District 03,Meg Froelich,42.1,10/12/22,Act Blue,Somerville,MA,2144,Bank Fees,
569,House District 03,Meg Froelich,8740.03,10/14/22,Superior Blue,Woodbridge,VA,22192,Other,Mailing
570,House District 03,Meg Froelich,750.0,10/14/22,Trublu Politics,Ellicott City,MD,21042,Consultant & Professional Services,
571,House District 03,Meg Froelich,865.87,10/15/21,Trublu Politics,Ellicott City,MD,21042,Advertising,Mailers
572,House District 03,Meg Froelich,13769.86,10/24/22,Superior Blue,Woodbridge,VA,22192,Other,Mailing
573,House District 03,Meg Froelich,5.64,11/1/22,Walmart,Centennial,CO,80112,"Food, Beverages and Meals",
574,House District 03,Meg Froelich,38.61,11/1/22,Circle K,Greenwood Village,CO,80111,"Food, Beverages and Meals",
575,House District 03,Meg Froelich,29.65,11/8/22,Birdcall,Denver,CO,80222,"Food, Beverages and Meals",
576,House District 03,Meg Froelich,2000.0,11/8/22,Corinne  O'Doherty,Greenwood Village,CO,80111,Consultant & Professional Services,
577,House District 03,Meg Froelich,18.29,11/9/22,King Soopers,Englewood,CO,80113,"Food, Beverages and Meals",
578,House District 03,Meg Froelich,29.08,11/10/22,Mad Greens,Greenwood Village,CO,80111,"Food, Beverages and Meals",
579,House District 03,Meg Froelich,300.0,11/18/21,Aimee  Resnick,Centennial,CO,80112,Employee Services,
580,House District 03,Meg Froelich,36.21,12/5/22,Gaylord Of The Rockies,Aurora,CO,80019,"Food, Beverages and Meals",
581,House District 03,Meg Froelich,10.69,12/8/22,Act Blue,Somerville,MA,2144,Bank Fees,
582,House District 03,Meg Froelich,2000.0,12/9/20,Hdpcf,Denver,CO,80203,Contributions,Dues To Hdpcf
583,House District 03,Meg Froelich,2000.0,12/12/21,Hdpcf,Denver,CO,80203,Contributions,
584,House District 03,Meg Froelich,750.0,12/15/20,Ngpvan,Somerville,MA,2144,Miscellaneous,Data
585,House District 03,Meg Froelich,29.09,12/21/20,Mailchimp,Atlanta,GA,30308,Advertising,Email Service
586,House District 03,Meg Froelich,223.42,12/31/21,Act Blue,Somerville,MA,2144,Bank Fees,Act Blue Fees
587,House District 03,Marla Fernandez,22.5,4/2/22,Canva,Surry Hills,AU,,Other,Paid For Sample Cards
588,House District 03,Marla Fernandez,-22.5,4/2/22,Canva,Surry Hills,AU,,Other,Offset Due To Update Of Filed Item - Paid For Sample Cards
589,House District 03,Marla Fernandez,22.5,4/2/22,Canva,Surry Hills,AU,20110,Other,Paid For Sample Cards
590,House District 03,Marla Fernandez,20.0,4/16/22,,,,,Donation for Independent Expenditures,Video Editing
591,House District 03,Marla Fernandez,22.5,4/27/22,Canva,Surry Hills,AU,,Other,Business Cards
592,House District 03,Marla Fernandez,-22.5,4/27/22,Canva,Surry Hills,AU,,Other,Offset Due To Update Of Filed Item - Business Cards
593,House District 03,Marla Fernandez,22.5,4/27/22,Canva,Surry Hills,AU,20110,Other,Business Cards
594,House District 03,Marla Fernandez,2.0,5/7/22,Square,San Francisco,CA,94103,Bank Fees,Fee
595,House District 03,Marla Fernandez,92.0,6/9/22,Fedex,Denver,CO,80237,Office Equipment & Supplies,
596,House District 03,Marla Fernandez,790.76,6/22/22,Bluehost,Jacksonville,FL,32256,Other,"Web Hosting Service
$239 For Domain Name. $551.76 Per Year."
597,House District 03,Marla Fernandez,299.0,6/29/22,Data Group Llc,Orlando,FL,32803,Consultant & Professional Services,
598,House District 03,Marla Fernandez,798.0,7/13/22,Enspot Political,North Miami,FL,33261,Advertising,Email Marketing And Social Media Ads And Website Editing
599,House District 03,Marla Fernandez,641.75,7/22/22,Vista Print,Waltham,MA,2421,Advertising,Yard Signs
600,House District 03,Marla Fernandez,157.27,8/2/22,Access Printing,Englewood,CO,80113,Consultant & Professional Services,
601,House District 03,Marla Fernandez,25.0,8/2/22,Canva,Surry Hills,AU,,Consultant & Professional Services,
602,House District 03,Marla Fernandez,-25.0,8/2/22,Canva,Surry Hills,AU,,Consultant & Professional Services,Offset Due To Update Of Filed Item
603,House District 03,Marla Fernandez,25.0,8/2/22,Canva,Surry Hills,AU,20110,Consultant & Professional Services,
604,House District 03,Marla Fernandez,237.0,8/12/22,Access Printing,Englewood,CO,80113,Consultant & Professional Services,
605,House District 03,Marla Fernandez,698.0,8/25/22,Clickmail.Com,San Mateo,CA,94402,Consultant & Professional Services,Use Of Candidate'S Payment To Click Mail Email Marketing Business.
606,House District 03,Marla Fernandez,80.0,9/13/22,Content Development Pros,Denver,CO,80206,Consultant & Professional Services,Editing And Submission Services For Opinion/Editorial Article In Colorado Sun.
607,House District 03,Marla Fernandez,-80.0,9/13/22,Content Development Pros,Denver,CO,80206,Consultant & Professional Services,Offset Due To Update Of Filed Item - Editing And Submission Services For Opinion/Editorial Article In Colorado Sun.
608,House District 03,Marla Fernandez,80.0,9/13/22,Content Development Pros,Red Bank,NJ,7701,Consultant & Professional Services,Editing And Submission Services For Opinion/Editorial Article In Colorado Sun.
609,House District 03,Marla Fernandez,50.0,9/21/22,Content Development Pros,Red Bank,NJ,7701,Consultant & Professional Services,Draft Newsletter To Encourage Votes
610,House District 03,Marla Fernandez,360.0,9/21/22,Content Development Pros,Red Bank,NJ,7701,Consultant & Professional Services,Use Of Candidate Marla Fernandez' Payment For The Writing Of A Speech Regarding Campaign Issues
611,House District 03,Marla Fernandez,-50.0,9/21/22,Content Development Pros,Red Bank,NJ,7701,Consultant & Professional Services,Offset Due To Update Of Filed Item - Draft Newsletter To Encourage Votes
612,House District 03,Marla Fernandez,50.0,9/21/22,Content Development Pros,Red Bank,NJ,7701,Consultant & Professional Services,Draft Newsletter To Encourage Votes
613,House District 03,Marla Fernandez,35.0,9/21/22,Content Development Pros,Red Bank,NJ,7701,Consultant & Professional Services,Prepare Question And Answer Draft
614,House District 03,Marla Fernandez,225.0,9/21/22,Content Development Pros,Red Bank,NJ,7701,Consultant & Professional Services,Write And Opinion-Editorial Draft Piece Regarding Issues
615,House District 03,Marla Fernandez,200.0,9/21/22,Content Development Pros,Red Bank,NJ,7701,Consultant & Professional Services,Design Campaign Brochure
616,House District 03,Marla Fernandez,300.0,9/23/22,Content Development Pros,Red Bank,NJ,7701,Consultant & Professional Services,Design Of Campaign Mailer Piece
617,House District 03,Marla Fernandez,500.0,9/23/22,Content Development Pros,Red Bank,NJ,7701,Consultant & Professional Services,Design And Preparation Of Gotv Animated Video
618,House District 03,Marla Fernandez,100.0,9/23/22,Cory  Parella,Aurora,CO,80012,Consultant & Professional Services,Design And Preparation Of Gotv Video
619,House District 03,Marla Fernandez,150.0,9/23/22,Ivote,Denver,CO,80290,Consultant & Professional Services,Use Of Candidate Payment Of In-Kind Contribution To Pay Ivote To Place Advertisement On Youtube
620,House District 03,Marla Fernandez,11.0,9/23/22,Mary Rose  Mccourt,Arvada,CO,80004,Consultant & Professional Services,Use Of Candidate'S In-Kind Contribution To Pay Mary Rose Mccourt To Prepare Logo
621,House District 03,Marla Fernandez,50.0,9/28/22,Content Development Pros,Red Bank,NJ,7701,Consultant & Professional Services,Design Logo
622,House District 03,Marla Fernandez,448.01,9/29/22,Texting For Less,Hackensack,NJ,7601,Consultant & Professional Services,Design And Sending Of Gotv Text Messages
623,House District 03,Marla Fernandez,997.0,9/30/22,Texting For Less,Hackensack,NJ,7601,Consultant & Professional Services,Design And Sending Of Gotv Text Messages
624,House District 03,Marla Fernandez,600.0,10/1/22,Klz 560 Am Kim Monson Show  Crawford Media Group,Blue Bell,PA,19422,Advertising,Radio Ad On Kim Monson Show For Gotv
625,House District 03,Marla Fernandez,531.1,10/20/22,Texting For Less,Hackensack,NJ,7601,Advertising,Gotv Text Messages To Voters
626,House District 03,Marla Fernandez,260.0,10/23/22,Access Printing,,CO,,Bank Fees,Flyers To Get Out The Vote
627,House District 03,Marla Fernandez,-260.0,10/23/22,Access Printing,,CO,,Bank Fees,Offset Due To Update Of Filed Item - Flyers To Get Out The Vote
628,House District 03,Marla Fernandez,260.0,10/23/22,Access Printing,Englewood,CO,80113,Consultant & Professional Services,Flyers To Get Out The Vote
629,House District 03,Marla Fernandez,500.0,10/28/22,Knus Radio Salem Media Group,Dallas,TX,75320-6590,Advertising,Get Out The Vote Radio Ads
630,House District 03,Marla Fernandez,130.0,10/31/22,Access Printing,Englewood,CO,80113,Advertising,500 Flyers For Get Out The Vote Voter Contacts
631,House District 03,Marla Fernandez,349.17,11/3/22,Texting For Less,Hackensack,NJ,7601,Consultant & Professional Services,Get Out The Vote Texts To Voters
632,House District 03,Marla Fernandez,135.47,11/5/22,Engage Voters Us,White Plains,NY,10601,Consultant & Professional Services,Robo Get Out The Vote Calls To Voters
633,House District 03,Marla Fernandez,312.45,11/7/22,Engage Voters Us,White Plains,NY,10601,Consultant & Professional Services,Use Of Candidate'S In-Kind Contribution To Pay For Get Out The Vote Robo Calls To Voters.
634,House District 03,Marla Fernandez,100.0,11/30/22,Julie A Mackay Percy,Denver,CO,80220,Consultant & Professional Services,Report Filing Services
635,House District 04,Serena Gonzales-Gutierrez,73.36,1/4/21,Microsoft,Redmond,WA,98052,Office Equipment & Supplies,
636,House District 04,Serena Gonzales-Gutierrez,6.0,1/4/21,First Bank,Denver,CO,80211,Bank Fees,
637,House District 04,Serena Gonzales-Gutierrez,163.11,1/12/21,Zoom,San Jose,CA,95113,Rent & Utilities,
638,House District 04,Serena Gonzales-Gutierrez,9.5,1/27/21,Efile,Lakewood,CO,80214,Other,Efiling A Form
639,House District 04,Serena Gonzales-Gutierrez,35.78,1/28/21,King Soopers,Lakewood,CO,80226,"Food, Beverages and Meals",
640,House District 04,Serena Gonzales-Gutierrez,9.96,1/28/21,Sams Club,Littleton,CO,80123,"Food, Beverages and Meals",
641,House District 04,Serena Gonzales-Gutierrez,156.78,1/28/21,Amazon,Seattle,WA,98109,"Food, Beverages and Meals",
642,House District 04,Serena Gonzales-Gutierrez,58.72,1/29/21,Costco,Arvada,CO,80002,"Food, Beverages and Meals",
643,House District 04,Serena Gonzales-Gutierrez,218.36,2/1/21,Santiagos Mexican,Denver,CO,80204,"Food, Beverages and Meals",
644,House District 04,Serena Gonzales-Gutierrez,25.14,2/1/21,Sams Club,Littleton,CO,80123,"Food, Beverages and Meals",
645,House District 04,Serena Gonzales-Gutierrez,6.0,2/1/21,First Bank,Denver,CO,80211,Bank Fees,
646,House District 04,Serena Gonzales-Gutierrez,12.8,3/1/21,Starbucks,Denver,CO,80204,"Food, Beverages and Meals",
647,House District 04,Serena Gonzales-Gutierrez,168.22,3/1/21,Santiagos Mexican,Denver,CO,80204,"Food, Beverages and Meals",
648,House District 04,Serena Gonzales-Gutierrez,14.54,3/1/21,Safeway,Denver,CO,80211,"Food, Beverages and Meals",
649,House District 04,Serena Gonzales-Gutierrez,6.0,3/2/21,First Bank,Denver,CO,80211,Bank Fees,
650,House District 04,Serena Gonzales-Gutierrez,13.75,3/8/21,Great Wall Chinese,Denver,CO,80203,"Food, Beverages and Meals",
651,House District 04,Serena Gonzales-Gutierrez,10.91,3/11/21,Starbucks,Denver,CO,80204,"Food, Beverages and Meals",
652,House District 04,Serena Gonzales-Gutierrez,3.65,3/11/21,Capitol Market,Denver,CO,80203,"Food, Beverages and Meals",
653,House District 04,Serena Gonzales-Gutierrez,6.64,3/24/21,Starbucks,Denver,CO,80204,"Food, Beverages and Meals",
654,House District 04,Serena Gonzales-Gutierrez,28.45,3/27/21,Actblue Technical Services,Cambridge,MA,2238,Bank Fees,
655,House District 04,Serena Gonzales-Gutierrez,24.55,4/1/21,La Casita,Denver,CO,80211,"Food, Beverages and Meals",
656,House District 04,Serena Gonzales-Gutierrez,12.59,4/12/21,Shish Kabob Grill,Denver,CO,80203,"Food, Beverages and Meals",
657,House District 04,Serena Gonzales-Gutierrez,6.64,4/12/21,Starbucks,Denver,CO,80204,"Food, Beverages and Meals",
658,House District 04,Serena Gonzales-Gutierrez,10.66,4/14/21,32 Market,River Falls,WI,54022,"Food, Beverages and Meals",
659,House District 04,Serena Gonzales-Gutierrez,21.2,4/15/21,Rosales Bakery,Denver,CO,80211,"Food, Beverages and Meals",
660,House District 04,Serena Gonzales-Gutierrez,12.16,4/19/21,Safeway,Denver,CO,80211,"Food, Beverages and Meals",
661,House District 04,Serena Gonzales-Gutierrez,6.64,4/19/21,Starbucks,Denver,CO,80204,"Food, Beverages and Meals",
662,House District 04,Serena Gonzales-Gutierrez,19.15,4/20/21,Modern Market,Denver,CO,80202,"Food, Beverages and Meals",
663,House District 04,Serena Gonzales-Gutierrez,6.64,4/21/21,Starbucks,Denver,CO,80204,"Food, Beverages and Meals",
664,House District 04,Serena Gonzales-Gutierrez,11.23,4/23/21,Starbucks,Denver,CO,80204,"Food, Beverages and Meals",
665,House District 04,Serena Gonzales-Gutierrez,13.49,4/27/21,The Molecule Effect,Denver,CO,80204,"Food, Beverages and Meals",
666,House District 04,Serena Gonzales-Gutierrez,17.46,4/29/21,Moe'S Bagels,Denver,CO,80203,"Food, Beverages and Meals",
667,House District 04,Serena Gonzales-Gutierrez,174.23,4/29/21,Modern Market,Denver,CO,80202,"Food, Beverages and Meals",
668,House District 04,Serena Gonzales-Gutierrez,13.85,4/30/21,Shish Kabob Grill,Denver,CO,80203,"Food, Beverages and Meals",
669,House District 04,Serena Gonzales-Gutierrez,13.49,4/30/21,The Molecule Effect,Denver,CO,80204,"Food, Beverages and Meals",
670,House District 04,Serena Gonzales-Gutierrez,16.25,5/5/21,Starbucks,Denver,CO,80204,"Food, Beverages and Meals",
671,House District 04,Serena Gonzales-Gutierrez,7.26,5/7/21,The Molecule Effect,Denver,CO,80204,"Food, Beverages and Meals",
672,House District 04,Serena Gonzales-Gutierrez,4.0,5/7/21,Hai Hais,Denver,CO,80204,"Food, Beverages and Meals",
673,House District 04,Serena Gonzales-Gutierrez,15.0,5/13/21,La Casita,Denver,CO,80211,"Food, Beverages and Meals",
674,House District 04,Serena Gonzales-Gutierrez,35.44,5/14/21,City O City,Denver,CO,80203,"Food, Beverages and Meals",
675,House District 04,Serena Gonzales-Gutierrez,6.1,5/18/21,Starbucks,Denver,CO,80204,"Food, Beverages and Meals",
676,House District 04,Serena Gonzales-Gutierrez,26.07,5/20/21,The Molecule Effect,Denver,CO,80204,"Food, Beverages and Meals",
677,House District 04,Serena Gonzales-Gutierrez,6.1,5/20/21,Starbucks,Denver,CO,80204,"Food, Beverages and Meals",
678,House District 04,Serena Gonzales-Gutierrez,21.6,5/24/21,Rosales Bakery,Denver,CO,80211,"Food, Beverages and Meals",
679,House District 04,Serena Gonzales-Gutierrez,4.25,5/24/21,32 Market,River Falls,WI,54022,"Food, Beverages and Meals",
680,House District 04,Serena Gonzales-Gutierrez,18.93,5/26/21,La Casita,Denver,CO,80211,"Food, Beverages and Meals",
681,House District 04,Serena Gonzales-Gutierrez,14.23,5/26/21,Burger King,Denver,CO,80204,"Food, Beverages and Meals",
682,House District 04,Serena Gonzales-Gutierrez,1.25,5/27/21,32 Market,River Falls,WI,54022,"Food, Beverages and Meals",
683,House District 04,Serena Gonzales-Gutierrez,14.42,5/27/21,Starbucks,Denver,CO,80204,"Food, Beverages and Meals",
684,House District 04,Serena Gonzales-Gutierrez,18.0,6/1/21,First Bank,Denver,CO,80211,Bank Fees,
685,House District 04,Serena Gonzales-Gutierrez,55.32,6/1/21,El Noa Noa,Denver,CO,80204,"Food, Beverages and Meals",
686,House District 04,Serena Gonzales-Gutierrez,15.39,6/4/21,Starbucks,Denver,CO,80204,"Food, Beverages and Meals",
687,House District 04,Serena Gonzales-Gutierrez,6.86,6/7/21,Starbucks,Denver,CO,80204,"Food, Beverages and Meals",
688,House District 04,Serena Gonzales-Gutierrez,67.73,6/7/21,Burgerfi,Denver,CO,80203,"Food, Beverages and Meals",
689,House District 04,Serena Gonzales-Gutierrez,43.01,6/9/21,La Casita,Denver,CO,80211,"Food, Beverages and Meals",
690,House District 04,Serena Gonzales-Gutierrez,19.3,6/9/21,Rosales Bakery,Denver,CO,80211,"Food, Beverages and Meals",
691,House District 04,Serena Gonzales-Gutierrez,13.66,6/17/21,Starbucks,Denver,CO,80204,"Food, Beverages and Meals",
692,House District 04,Serena Gonzales-Gutierrez,45.72,6/25/21,Panera Bread,Denver,CO,80211,"Food, Beverages and Meals",
693,House District 04,Serena Gonzales-Gutierrez,10.48,6/25/21,Starbucks,Denver,CO,80204,"Food, Beverages and Meals",
694,House District 04,Serena Gonzales-Gutierrez,0.4,6/27/21,Actblue,Somerville,MA,2144,Bank Fees,
695,House District 04,Serena Gonzales-Gutierrez,49.63,6/28/21,Safeway,Denver,CO,80211,"Food, Beverages and Meals",
696,House District 04,Serena Gonzales-Gutierrez,5.89,6/30/21,Starbucks,Denver,CO,80204,"Food, Beverages and Meals",
697,House District 04,Serena Gonzales-Gutierrez,132.38,7/1/21,Cultura Craft,Denver,CO,80219,"Food, Beverages and Meals",
698,House District 04,Serena Gonzales-Gutierrez,6.0,7/1/21,First Bank,Denver,CO,80211,Bank Fees,
699,House District 04,Serena Gonzales-Gutierrez,83.34,7/6/21,Taqueria Patzcuaro,Denver,CO,80211,"Food, Beverages and Meals",
700,House District 04,Serena Gonzales-Gutierrez,66.85,7/6/21,The Universal,Denver,CO,80211,"Food, Beverages and Meals",
701,House District 04,Serena Gonzales-Gutierrez,12.99,7/7/21,Winchell'S,Denver,CO,80221,"Food, Beverages and Meals",
702,House District 04,Serena Gonzales-Gutierrez,100.0,7/14/21,Denver Democratic Central Committee,Denver,CO,80209,Advertising,
703,House District 04,Serena Gonzales-Gutierrez,6.0,8/3/21,First Bank,Denver,CO,80211,Bank Fees,
704,House District 04,Serena Gonzales-Gutierrez,5.88,8/13/21,Starbucks,Denver,CO,80204,"Food, Beverages and Meals",
705,House District 04,Serena Gonzales-Gutierrez,0.4,8/13/21,Actblue,Somerville,MA,2144,Bank Fees,
706,House District 04,Serena Gonzales-Gutierrez,6.1,8/23/21,Starbucks,Denver,CO,80204,"Food, Beverages and Meals",
707,House District 04,Serena Gonzales-Gutierrez,6.0,9/1/21,First Bank,Denver,CO,80211,Bank Fees,
708,House District 04,Serena Gonzales-Gutierrez,6.25,9/15/21,Metropolis Coffee,Denver,CO,80211,"Food, Beverages and Meals",
709,House District 04,Serena Gonzales-Gutierrez,7.24,9/15/21,Starbucks,Denver,CO,80204,"Food, Beverages and Meals",
710,House District 04,Serena Gonzales-Gutierrez,12.21,9/17/21,Starbucks,Denver,CO,80204,"Food, Beverages and Meals",
711,House District 04,Serena Gonzales-Gutierrez,201.0,9/20/21,Usps,Denver,CO,80212,Fundraising Expenses,
712,House District 04,Serena Gonzales-Gutierrez,12.26,9/24/21,Starbucks,Denver,CO,80204,"Food, Beverages and Meals",
713,House District 04,Serena Gonzales-Gutierrez,6.0,12/1/20,First Bank,Denver,CO,80211,Bank Fees,
714,House District 04,Serena Gonzales-Gutierrez,50.0,12/2/20,Colorado Secretary Of State,Denver,CO,80290,Other,Filing Late Fee
715,House District 04,Serena Gonzales-Gutierrez,4000.0,12/7/20,Chela  Garcia Irlando,Denver,CO,80219,Employee Services,
716,House District 04,Serena Gonzales-Gutierrez,2000.0,12/7/20,Colorado Democratic Party,Denver,CO,80203,Other,Party Fee
717,House District 04,Serena Gonzales-Gutierrez,2040.82,12/8/20,Colorado Gives Day,Arvada,CO,80003,Contributions,Contribution Gifts To Various Nonporfit Organizations
718,House District 04,Serena Gonzales-Gutierrez,28.5,12/17/20,La Casita,Denver,CO,80211,"Food, Beverages and Meals",
719,House District 04,Serena Gonzales-Gutierrez,73.36,1/3/22,Microsoft,Redmond,WA,98052,Office Equipment & Supplies,
720,House District 04,Serena Gonzales-Gutierrez,6.0,1/3/22,First Bank,Denver,CO,80211,Bank Fees,
721,House District 04,Serena Gonzales-Gutierrez,10.37,1/5/22,Starbucks,Denver,CO,80204,"Food, Beverages and Meals",
722,House District 04,Serena Gonzales-Gutierrez,33.54,1/6/22,Modern Market,Denver,CO,80202,"Food, Beverages and Meals",
723,House District 04,Serena Gonzales-Gutierrez,163.11,1/12/22,Zoom,San Jose,CA,95113,Office Equipment & Supplies,
724,House District 04,Serena Gonzales-Gutierrez,13.7,1/21/22,Rosales Bakery,Denver,CO,80211,"Food, Beverages and Meals",
725,House District 04,Serena Gonzales-Gutierrez,6.0,2/1/22,First Bank,Denver,CO,80211,Bank Fees,
726,House District 04,Serena Gonzales-Gutierrez,12.91,2/3/22,Starbucks,Denver,CO,80204,"Food, Beverages and Meals",
727,House District 04,Serena Gonzales-Gutierrez,1020.41,2/7/22,Cllaro,Denver,CO,80217,Contributions,Non Profit Contribution
728,House District 04,Serena Gonzales-Gutierrez,154.94,2/7/22,Colorado Democratic Latino Caucus,Denver,CO,80222,Contributions,Non Profit
729,House District 04,Serena Gonzales-Gutierrez,24.91,2/15/22,Modern Market,Denver,CO,80202,"Food, Beverages and Meals",
730,House District 04,Serena Gonzales-Gutierrez,6.0,3/2/22,First Bank,Denver,CO,80211,Bank Fees,
731,House District 04,Serena Gonzales-Gutierrez,15.0,3/3/22,Starbucks,Denver,CO,80204,"Food, Beverages and Meals",
732,House District 04,Serena Gonzales-Gutierrez,8.86,3/8/22,Starbucks,Denver,CO,80204,"Food, Beverages and Meals",
733,House District 04,Serena Gonzales-Gutierrez,15.49,3/16/22,Great Wall Chinese,Denver,CO,80203,"Food, Beverages and Meals",
734,House District 04,Serena Gonzales-Gutierrez,39.77,3/17/22,City Of Make Believe Bakery,Denver,CO,80203,"Food, Beverages and Meals",
735,House District 04,Serena Gonzales-Gutierrez,48.5,3/18/22,El Noa Noa,Denver,CO,80204,"Food, Beverages and Meals",
736,House District 04,Serena Gonzales-Gutierrez,78.34,3/21/22,Fedex,Denver,CO,80202,Other,Printing
737,House District 04,Serena Gonzales-Gutierrez,11.0,3/24/22,Rosales Bakery,Denver,CO,80211,"Food, Beverages and Meals",
738,House District 04,Serena Gonzales-Gutierrez,13.99,3/24/22,On And Off,Denver,CO,80211,"Food, Beverages and Meals",
739,House District 04,Serena Gonzales-Gutierrez,8.32,3/24/22,Starbucks,Denver,CO,80204,"Food, Beverages and Meals",
740,House District 04,Serena Gonzales-Gutierrez,9.29,3/30/22,Starbucks,Denver,CO,80204,"Food, Beverages and Meals",
741,House District 04,Serena Gonzales-Gutierrez,75.18,3/31/22,Actblue Technical Services,Lafayette,CO,80026,Bank Fees,
742,House District 04,Serena Gonzales-Gutierrez,6.0,4/1/22,First Bank,Denver,CO,80211,Bank Fees,
743,House District 04,Serena Gonzales-Gutierrez,34.08,4/11/22,Steubens,Denver,CO,80203,"Food, Beverages and Meals",
744,House District 04,Serena Gonzales-Gutierrez,61.43,4/11/22,City Of Make Believe Bakery,Denver,CO,80203,"Food, Beverages and Meals",
745,House District 04,Serena Gonzales-Gutierrez,14.96,4/14/22,Starbucks,Denver,CO,80204,"Food, Beverages and Meals",
746,House District 04,Serena Gonzales-Gutierrez,12.69,4/20/22,Starbucks,Denver,CO,80204,"Food, Beverages and Meals",
747,House District 04,Serena Gonzales-Gutierrez,6.0,5/3/22,First Bank,Denver,CO,80211,Bank Fees,
748,House District 04,Serena Gonzales-Gutierrez,6.64,5/9/22,Starbucks,Denver,CO,80204,"Food, Beverages and Meals",
749,House District 04,Serena Gonzales-Gutierrez,6.43,5/11/22,Starbucks,Denver,CO,80204,"Food, Beverages and Meals",
750,House District 04,Serena Gonzales-Gutierrez,6.0,6/2/22,First Bank,Denver,CO,80211,Bank Fees,
751,House District 04,Serena Gonzales-Gutierrez,400.0,6/29/22,Conservation Colorado,Denver,CO,80203,Contributions,Nonprofit Contribution
752,House District 04,Serena Gonzales-Gutierrez,6.0,7/1/22,First Bank,Denver,CO,80211,Bank Fees,
753,House District 04,Serena Gonzales-Gutierrez,204.8,7/5/22,Residence Inn,Breckenridge,CO,80424,Travel & Lodging,
754,House District 04,Serena Gonzales-Gutierrez,10.0,7/20/22,First Bank,Denver,CO,80211,Bank Fees,Transfer Fee
755,House District 04,Serena Gonzales-Gutierrez,198.0,7/25/22,Usps,Denver,CO,80211,Fundraising Expenses,
756,House District 04,Serena Gonzales-Gutierrez,100.0,7/29/22,Colorado Democratic Party Political Committee,Denver,CO,80203,Contributions,
757,House District 04,Serena Gonzales-Gutierrez,6.0,8/2/22,First Bank,Denver,CO,80211,Bank Fees,
758,House District 04,Serena Gonzales-Gutierrez,2500.0,8/11/22,Colorado Democratic Party Political Committee,Denver,CO,80203,Contributions,
759,House District 04,Serena Gonzales-Gutierrez,250.0,8/30/22,Colorado Democratic Party Political Committee,Denver,CO,80203,Contributions,
760,House District 04,Serena Gonzales-Gutierrez,6.0,9/1/22,First Bank,Denver,CO,80211,Bank Fees,
761,House District 04,Serena Gonzales-Gutierrez,51.05,9/12/22,Syrup Edgewater,Edgewater,CO,80214,"Food, Beverages and Meals",
762,House District 04,Serena Gonzales-Gutierrez,7.77,9/22/22,Cherry Bean Coffee Company,Denver,CO,80211,"Food, Beverages and Meals",
763,House District 04,Serena Gonzales-Gutierrez,20.0,9/26/22,555 17Th Street Garage,Denver,CO,80202,Travel & Lodging,Parking
764,House District 04,Serena Gonzales-Gutierrez,850.0,9/26/22,House Majority Fund Pac,Denver,CO,80203,Fundraising Expenses,
765,House District 04,Serena Gonzales-Gutierrez,625.0,9/26/22,Serena Lucha Leadership Fund,Denver,CO,80212,Contributions,
766,House District 04,Serena Gonzales-Gutierrez,3.95,9/26/22,Actblue,Somerville,MA,2144,Bank Fees,
767,House District 04,Serena Gonzales-Gutierrez,41.78,9/29/22,Nana'S Cocina,Denver,CO,80211,"Food, Beverages and Meals",
768,House District 04,Serena Gonzales-Gutierrez,50.24,9/29/22,La Cocinita,Denver,CO,80212,"Food, Beverages and Meals",
769,House District 04,Serena Gonzales-Gutierrez,361.58,9/30/22,Denver Democratic Central Committee,Denver,CO,80209,Fundraising Expenses,
770,House District 04,Serena Gonzales-Gutierrez,6.0,10/1/21,First Bank,Denver,CO,80211,Bank Fees,
771,House District 04,Serena Gonzales-Gutierrez,6.0,10/3/22,First Bank,Denver,CO,80211,Bank Fees,
772,House District 04,Serena Gonzales-Gutierrez,45.57,10/4/21,Snooze,Denver,CO,80202,"Food, Beverages and Meals",
773,House District 04,Serena Gonzales-Gutierrez,17.5,10/5/21,Rosales Bakery,Denver,CO,80211,"Food, Beverages and Meals",
774,House District 04,Serena Gonzales-Gutierrez,38.88,10/5/21,El Aguascalientes,Wheat Ridge,CO,80033,"Food, Beverages and Meals",
775,House District 04,Serena Gonzales-Gutierrez,29.7,10/6/21,Safeway,Denver,CO,80211,"Food, Beverages and Meals",
776,House District 04,Serena Gonzales-Gutierrez,39.17,10/11/22,Aladdin Mediterranean Grill,Denver,CO,80211,"Food, Beverages and Meals",
777,House District 04,Serena Gonzales-Gutierrez,78.12,10/11/22,What'S Happening Catering,Denver,CO,80211,"Food, Beverages and Meals",
778,House District 04,Serena Gonzales-Gutierrez,125.35,10/11/22,Nana'S Cocina,Denver,CO,80211,"Food, Beverages and Meals",
779,House District 04,Serena Gonzales-Gutierrez,11.23,10/12/21,Starbucks,Denver,CO,80204,"Food, Beverages and Meals",
780,House District 04,Serena Gonzales-Gutierrez,43.45,10/12/21,The Universal,Denver,CO,80211,"Food, Beverages and Meals",
781,House District 04,Serena Gonzales-Gutierrez,8226.96,10/20/22,Gamino Printing,Denver,CO,80223,Fundraising Expenses,
782,House District 04,Serena Gonzales-Gutierrez,59.41,10/24/22,Two Brothers Cafe,Denver,CO,80211,"Food, Beverages and Meals",
783,House District 04,Serena Gonzales-Gutierrez,15.8,10/25/22,Actblue,Somerville,MA,2144,Bank Fees,
784,House District 04,Serena Gonzales-Gutierrez,7.99,10/28/21,Starbucks,Denver,CO,80204,"Food, Beverages and Meals",
785,House District 04,Serena Gonzales-Gutierrez,11.04,10/31/22,The Radiator,Denver,CO,80211,"Food, Beverages and Meals",
786,House District 04,Serena Gonzales-Gutierrez,16.64,10/31/22,Nana'S Cocina,Denver,CO,80211,"Food, Beverages and Meals",
787,House District 04,Serena Gonzales-Gutierrez,13.58,11/1/21,Yahya Grill,Denver,CO,80206,"Food, Beverages and Meals",
788,House District 04,Serena Gonzales-Gutierrez,150.0,11/1/21,Marianne  Shiple,Boulder,CO,80304,Employee Services,
789,House District 04,Serena Gonzales-Gutierrez,6.0,11/1/21,First Bank Of Colorado,Denver,CO,80212,Bank Fees,
790,House District 04,Serena Gonzales-Gutierrez,6.0,11/1/22,First Bank,Denver,CO,80211,Bank Fees,
791,House District 04,Serena Gonzales-Gutierrez,220.0,11/1/22,Pat  Lombardi,Lafayette,CO,80026,Consultant & Professional Services,
792,House District 04,Serena Gonzales-Gutierrez,15.37,11/4/21,Make Believe Bakery,Denver,CO,80203,"Food, Beverages and Meals",
793,House District 04,Serena Gonzales-Gutierrez,15.0,11/4/22,Ahec Parking,Denver,CO,80204,Travel & Lodging,
794,House District 04,Serena Gonzales-Gutierrez,8.29,11/7/22,Marvala Llc,Denver,CO,80211,Office Equipment & Supplies,
795,House District 04,Serena Gonzales-Gutierrez,9.1,11/7/22,Marvala Llc,Denver,CO,80211,Office Equipment & Supplies,
796,House District 04,Serena Gonzales-Gutierrez,7.99,11/9/21,Starbucks,Denver,CO,80204,"Food, Beverages and Meals",
797,House District 04,Serena Gonzales-Gutierrez,16.0,11/10/22,Denver Lots,Denver,CO,80204,Travel & Lodging,
798,House District 04,Serena Gonzales-Gutierrez,23.55,11/10/22,Parsley,Denver,CO,80204,"Food, Beverages and Meals",
799,House District 04,Serena Gonzales-Gutierrez,4.24,11/12/21,Bookbar,Denver,CO,80212,"Food, Beverages and Meals",
800,House District 04,Serena Gonzales-Gutierrez,17.15,11/14/22,Chef Zorbas,Denver,CO,80206,"Food, Beverages and Meals",
801,House District 04,Serena Gonzales-Gutierrez,290.0,11/17/21,House Democratic Majority Fund: Democratic,Denver,CO,80218,Other,Caucus Fee
802,House District 04,Serena Gonzales-Gutierrez,4.5,11/25/22,The Radiator,Denver,CO,80211,"Food, Beverages and Meals",
803,House District 04,Serena Gonzales-Gutierrez,1537.82,11/28/22,Best Buy,Lakewood,CO,80123,Office Equipment & Supplies,
804,House District 04,Serena Gonzales-Gutierrez,6.0,12/1/21,First Bank,Denver,CO,80211,Bank Fees,
805,House District 04,Serena Gonzales-Gutierrez,6.0,12/1/22,First Bank,Denver,CO,80211,Bank Fees,
806,House District 04,Serena Gonzales-Gutierrez,6.92,12/1/22,Actblue,Somerville,MA,2144,Bank Fees,
807,House District 04,Serena Gonzales-Gutierrez,6.24,12/2/22,Gaylord Rockies Resort,Aurora,CO,80019,"Food, Beverages and Meals",
808,House District 04,Serena Gonzales-Gutierrez,8.29,12/5/22,Marvala Llc,Denver,CO,80211,Office Equipment & Supplies,
809,House District 04,Serena Gonzales-Gutierrez,13.06,12/5/22,Nana'S Cocina,Denver,CO,80211,"Food, Beverages and Meals",
810,House District 04,Serena Gonzales-Gutierrez,25.0,12/6/21,Starbucks,Denver,CO,80204,"Food, Beverages and Meals",
811,House District 04,Serena Gonzales-Gutierrez,250.0,12/6/21,Lisette  Zamora,Henderson,CO,80640,Consultant & Professional Services,
812,House District 04,Serena Gonzales-Gutierrez,500.0,12/6/22,Denver Democratic Central Committee,Denver,CO,80209,Office Equipment & Supplies,
813,House District 04,Serena Gonzales-Gutierrez,161.39,12/7/21,Pat  Lombardi,Lafayette,CO,80026,Consultant & Professional Services,
814,House District 04,Serena Gonzales-Gutierrez,50.0,12/9/21,Colorado Secretary Of State,Denver,CO,80290,Other,Penalty
815,House District 04,Serena Gonzales-Gutierrez,11.83,12/14/21,Starbucks,Denver,CO,80204,"Food, Beverages and Meals",
816,House District 04,Serena Gonzales-Gutierrez,10.48,12/17/21,Starbucks,Denver,CO,80204,"Food, Beverages and Meals",
817,House District 04,Serena Gonzales-Gutierrez,39.02,12/31/21,Actblue,Somerville,MA,2144,Bank Fees,
818,House District 04,Jack Daus,,,,,,,,
819,House District 05,Troy Brekke,,,,,,,,
820,House District 05,Alex Valdez,12.52,1/2/21,Google Inc,"Mountain View,",CA,94043,Consultant & Professional Services,
821,House District 05,Alex Valdez,100.0,1/5/21,Colorado Democratic Latino,Denver,CO,80222,Contributions,
822,House District 05,Alex Valdez,92.0,1/5/21,Us Postal Service,Denver,CO,80211,Office Equipment & Supplies,Usps Post Office Box 11752
823,House District 05,Alex Valdez,301.77,1/12/21,Edie  Hooten,Denver,CO,80203,Consultant & Professional Services,Pizza For Caucus
824,House District 05,Alex Valdez,267.5,1/14/21,Isabel  Baird,Denver,CO,80209,Consultant & Professional Services,
825,House District 05,Alex Valdez,1197.09,1/19/21,Costco,Denver,CO,80223,Office Equipment & Supplies,Staff Computer
826,House District 05,Alex Valdez,1500.0,1/20/21,Cllaro,Denver,CO,80239,Consultant & Professional Services,Cllaro Fellow
827,House District 05,Alex Valdez,2.0,1/29/21,First Bank,"Lakewood,",CO,80215,Bank Fees,Fees For Debit Card
828,House District 05,Alex Valdez,12.58,2/3/21,Google Inc,"Mountain View,",CA,94043,Consultant & Professional Services,
829,House District 05,Alex Valdez,800.0,2/4/21,Isabel  Baird,Denver,CO,80209,Consultant & Professional Services,
830,House District 05,Alex Valdez,50.0,2/15/21,Colorado Secretary Of State,Denver,CO,80290,Other,Payment To Sos 2021-E000059
831,House District 05,Alex Valdez,2.0,2/26/21,First Bank,"Lakewood,",CO,80215,Bank Fees,
832,House District 05,Alex Valdez,12.58,3/3/21,Google Inc,"Mountain View,",CA,94043,Bank Fees,
833,House District 05,Alex Valdez,800.0,3/8/21,Isabel  Baird,Denver,CO,80209,Consultant & Professional Services,
834,House District 05,Alex Valdez,2.0,3/31/21,First Bank,"Lakewood,",CO,80215,Bank Fees,Debit Card Fees
835,House District 05,Alex Valdez,12.58,4/5/21,Google Inc,"Mountain View,",CA,94043,Consultant & Professional Services,
836,House District 05,Alex Valdez,800.0,4/19/21,Isabel  Baird,Denver,CO,80209,Consultant & Professional Services,
837,House District 05,Alex Valdez,2.0,4/30/21,First Bank,"Lakewood,",CO,80215,Bank Fees,
838,House District 05,Alex Valdez,12.58,5/7/21,Google Inc,"Mountain View,",CA,94043,Consultant & Professional Services,
839,House District 05,Alex Valdez,800.0,5/7/21,Isabel  Baird,Denver,CO,80209,Consultant & Professional Services,
840,House District 05,Alex Valdez,200.0,5/10/21,The Center On Colfax,Denver,CO,80218,Other,Donation
841,House District 05,Alex Valdez,2.0,5/28/21,First Bank,"Lakewood,",CO,80215,Bank Fees,Bank Fees
842,House District 05,Alex Valdez,500.0,5/28/21,George  Winfrey,Denver,CO,80202,Consultant & Professional Services,Intern
843,House District 05,Alex Valdez,12.58,6/2/21,Google Inc,"Mountain View,",CA,94043,Consultant & Professional Services,
844,House District 05,Alex Valdez,800.0,6/17/21,Isabel  Baird,Denver,CO,80209,Consultant & Professional Services,
845,House District 05,Alex Valdez,2.0,6/30/21,First Bank,"Lakewood,",CO,80215,Bank Fees,Bank Fees
846,House District 05,Alex Valdez,12.58,7/2/21,Google Inc,"Mountain View,",CA,94043,Consultant & Professional Services,
847,House District 05,Alex Valdez,51.25,7/19/21,National Caucus For Environmental Legislators,Washington,D.,20007,Other,Dues
848,House District 05,Alex Valdez,800.0,7/22/21,Isabel  Baird,Denver,CO,80209,Consultant & Professional Services,
849,House District 05,Alex Valdez,2.0,7/30/21,First Bank,"Lakewood,",CO,80215,Bank Fees,
850,House District 05,Alex Valdez,12.58,8/2/21,Google Inc,"Mountain View,",CA,94043,Consultant & Professional Services,
851,House District 05,Alex Valdez,100.0,8/5/21,Alexa  Barratt,Denver,CO,80212,Consultant & Professional Services,
852,House District 05,Alex Valdez,10.0,8/11/21,Democratic Party Of Denver,Denver,CO,80209,Other,Event Fee
853,House District 05,Alex Valdez,1000.0,8/20/21,Isabel  Baird,Denver,CO,80209,Consultant & Professional Services,
854,House District 05,Alex Valdez,2.0,8/31/21,First Bank,"Lakewood,",CO,80215,Bank Fees,
855,House District 05,Alex Valdez,12.58,9/3/21,Google Inc,"Mountain View,",CA,94043,Consultant & Professional Services,
856,House District 05,Alex Valdez,1000.0,9/8/21,Isabel  Baird,Denver,CO,80209,Consultant & Professional Services,
857,House District 05,Alex Valdez,2.0,9/30/21,First Bank,"Lakewood,",CO,80215,Bank Fees,
858,House District 05,Alex Valdez,5.0,9/30/21,Us Postal Service,Denver,CO,80211,Consultant & Professional Services,
859,House District 05,Alex Valdez,12.52,12/1/20,Google Inc,"Mountain View,",CA,94043,Consultant & Professional Services,
860,House District 05,Alex Valdez,865.15,12/9/20,House Democratic Majority Fund,Denver,CO,80218,Consultant & Professional Services,Campaign Mail
861,House District 05,Alex Valdez,1500.0,12/10/20,Alexa  Barratt,Denver,CO,80212,Consultant & Professional Services,
862,House District 05,Alex Valdez,100.0,12/10/20,Democratic Party Of Denver,Denver,CO,80209,Other,Fees And Dues
863,House District 05,Alex Valdez,2000.0,12/10/20,Colorado Democratic Party Political Committee,Denver,CO,80203,Other,Caucus Dues For 2021 And 2022
864,House District 05,Alex Valdez,101.87,12/15/20,Costco,Denver,CO,80223,Office Equipment & Supplies,Paper
865,House District 05,Alex Valdez,95.69,12/15/20,Target.Com,Minneapolis,MN,55403,Office Equipment & Supplies,
866,House District 05,Alex Valdez,2.0,12/31/20,First Bank,"Lakewood,",CO,80215,Bank Fees,Debit Card Fees
867,House District 05,Alex Valdez,12.58,1/3/22,Google Inc,"Mountain View,",CA,94043,Consultant & Professional Services,
868,House District 05,Alex Valdez,1000.0,1/19/22,Isabel  Baird,Denver,CO,80209,Consultant & Professional Services,
869,House District 05,Alex Valdez,156.0,1/28/22,Usps,Denver,CO,80211,Consultant & Professional Services,
870,House District 05,Alex Valdez,1000.0,2/14/22,Isabel  Baird,Denver,CO,80209,Consultant & Professional Services,
871,House District 05,Alex Valdez,2.0,2/28/22,First Bank,"Lakewood,",CO,80215,Bank Fees,Bank Fees
872,House District 05,Alex Valdez,1000.0,2/28/22,Isabel  Baird,Denver,CO,80209,Consultant & Professional Services,
873,House District 05,Alex Valdez,200.0,3/1/22,Colorado Secretary Of State,Denver,CO,80290,Consultant & Professional Services,Flpa Penalty
874,House District 05,Alex Valdez,12.58,3/3/22,Google Inc,"Mountain View,",CA,94043,Consultant & Professional Services,
875,House District 05,Alex Valdez,100.0,3/29/22,Colorado Democratic Latino Caucus,Denver,CO,80203,Other,Caucus Dues
876,House District 05,Alex Valdez,1000.0,3/29/22,Isabel  Baird,Denver,CO,80209,Consultant & Professional Services,
877,House District 05,Alex Valdez,2.0,3/31/22,First Bank,"Lakewood,",CO,80215,Bank Fees,
878,House District 05,Alex Valdez,12.58,4/4/22,Google Inc,"Mountain View,",CA,94043,Bank Fees,
879,House District 05,Alex Valdez,2.0,4/27/22,First Bank,"Lakewood,",CO,80215,Bank Fees,
880,House District 05,Alex Valdez,1000.0,4/27/22,Isabel  Baird,Denver,CO,80209,Consultant & Professional Services,
881,House District 05,Alex Valdez,2.0,4/28/22,First Bank,"Lakewood,",CO,80215,Bank Fees,
882,House District 05,Alex Valdez,250.0,5/28/22,Colorado Democratic Party Political Committee,Denver,CO,80203,Contributions,
883,House District 05,Alex Valdez,450.0,5/29/22,Alexa  Barratt,Denver,CO,80212,Consultant & Professional Services,
884,House District 05,Alex Valdez,2.0,5/31/22,First Bank,"Lakewood,",CO,80215,Bank Fees,
885,House District 05,Alex Valdez,12.57,6/6/22,Google Inc,"Mountain View,",CA,94043,Consultant & Professional Services,
886,House District 05,Alex Valdez,-100.0,8/5/21,Alexa  Barratt,Denver,CO,80212,Consultant & Professional Services,Offset Due To Update Of Filed Item
887,House District 05,Alex Valdez,1000.0,8/5/21,Alexa  Barratt,Denver,CO,80212,Consultant & Professional Services,
888,House District 05,Alex Valdez,25.16,8/25/22,Google Inc,"Mountain View,",CA,94043,Consultant & Professional Services,
889,House District 05,Alex Valdez,-1000.0,9/8/21,Isabel  Baird,Denver,CO,80209,Consultant & Professional Services,Offset Due To Deletion Of Filed Item
890,House District 05,Alex Valdez,1000.0,9/8/22,Colorado Democratic Party Political Committee,Denver,CO,80203,Contributions,
891,House District 05,Alex Valdez,550.0,9/13/22,Amazon,Seattle,WA,98109,Office Equipment & Supplies,
892,House District 05,Alex Valdez,12.58,9/15/22,Google Inc,"Mountain View,",CA,94043,Consultant & Professional Services,
893,House District 05,Alex Valdez,12.58,9/29/22,Google Inc,"Mountain View,",CA,94043,Consultant & Professional Services,
894,House District 05,Alex Valdez,2.0,9/29/22,First Bank,"Lakewood,",CO,80215,Bank Fees,
895,House District 05,Alex Valdez,12.58,10/4/21,Google Inc,"Mountain View,",CA,94043,Consultant & Professional Services,
896,House District 05,Alex Valdez,115.0,10/11/22,Zoom,Denver,CO,80237,Consultant & Professional Services,
897,House District 05,Alex Valdez,20.0,10/13/22,Zoho,Pleasantville,CA,94588,Consultant & Professional Services,
898,House District 05,Alex Valdez,152.1,10/20/22,Us Postal Service,Denver,CO,80211,Office Equipment & Supplies,
899,House District 05,Alex Valdez,248.0,10/21/22,Amazon,Seattle,WA,98109,Office Equipment & Supplies,
900,House District 05,Alex Valdez,300.0,10/24/22,Evan  Semon,Denver,CO,80206,Consultant & Professional Services,
901,House District 05,Alex Valdez,2.0,10/29/21,First Bank,"Lakewood,",CO,80215,Bank Fees,
902,House District 05,Alex Valdez,12.58,11/2/21,Google Inc,"Mountain View,",CA,94043,Consultant & Professional Services,
903,House District 05,Alex Valdez,200.0,11/2/21,Alexa  Barratt,Denver,CO,80212,Consultant & Professional Services,
904,House District 05,Alex Valdez,12.58,11/2/22,Google Inc,"Mountain View,",CA,94043,Consultant & Professional Services,
905,House District 05,Alex Valdez,20.0,11/2/22,Zoho,Pleasantville,CA,94588,Consultant & Professional Services,
906,House District 05,Alex Valdez,500.0,11/21/22,Beatrice  O'Connor,Denver,CO,80202,Consultant & Professional Services,
907,House District 05,Alex Valdez,12.58,12/1/21,Google Inc,"Mountain View,",CA,94043,Consultant & Professional Services,
908,House District 05,Alex Valdez,290.0,12/1/21,Colorado Democratic Party Political Committee,Denver,CO,80203,Contributions,
909,House District 05,Alex Valdez,1000.0,12/1/21,Isabel  Baird,Denver,CO,80209,Consultant & Professional Services,
910,House District 05,Alex Valdez,90.0,12/6/22,Democratic Party Of Denver,Denver,CO,80209,Contributions,
911,House District 05,Alex Valdez,163.2,12/6/22,Amazon,Seattle,WA,98109,Consultant & Professional Services,
912,House District 05,Alex Valdez,1500.0,12/7/21,Colorado Democratic Party: Support Colo Democratic Candidates,Denver,CO,80203,Contributions,
913,House District 05,Alex Valdez,1000.0,12/28/21,Cllaro,Denver,CO,80239,Consultant & Professional Services,
914,House District 05,Alex Valdez,2.0,12/31/21,First Bank,"Lakewood,",CO,80215,Bank Fees,
915,House District 05,Johnnie Johnson,12.93,4/26/22,,,,,Office Equipment & Supplies,"Office Depo 616 E Colfax Denver, Co 80205 60 Post Cards And Labels"
916,House District 05,Johnnie Johnson,30.0,5/31/22,,,,,Advertising,Text Outbound Numbers
917,House District 05,Johnnie Johnson,90.0,6/9/22,,,,,Advertising,Text 3000 Outbound #'S
918,House District 05,Johnnie Johnson,600.0,8/1/22,,,,,Advertising,"Sending Out150,000 Emails From Enspot Political"
919,House District 05,Johnnie Johnson,2.0,9/6/22,,,,,Donation for Independent Expenditures,Access A Ride Trip
920,House District 05,Johnnie Johnson,42.0,9/22/22,,,,,"Food, Beverages and Meals",Dinner At Blue Bonnet Restaurant
921,House District 05,Johnnie Johnson,5.0,10/1/22,,,,,Travel & Lodging,Talked To People Downtown Concerning My Election
922,House District 05,Johnnie Johnson,90.0,10/10/22,Ira Helps The Blind,,CO,,Consultant & Professional Services,"The Reason I Had To Pay Out Of Pocket $90, Is Because I Had To Wait Tell I Had Enough Money To Pay Ira, Who Helps Blind People And Also, Because  Of Jena Griswold And Before Her Wayne Williams Web Staff Not Making This Site Ada Compliant."
923,House District 05,Johnnie Johnson,90.0,10/17/22,,,,,Donation for Independent Expenditures,"Is Because Of Jena Griswold Web Staff Not Making This Site Ada Compliant, So I Had To Pay Ira A Service For The Blind That Spend Around 35 Minutes Helping Me Through This Site."
924,House District 05,Johnnie Johnson,0.01,10/31/22,,,,,Donation for Independent Expenditures,I Have Been Out Of Money For A Long Time As I Didn'T Go To Any Gop Events.
925,House District 06,Donald D. Howell,,,,,,,,
926,House District 06,Elisabeth Epps,150.83,1/1/22,Ngp Van,Washington,DC,20005,Office Equipment & Supplies,Fee For Access To Van
927,House District 06,Elisabeth Epps,70.0,1/2/22,Actblue,Somerville,MA,2144,Fundraising Expenses,Fee For Online Donor Management Service
928,House District 06,Elisabeth Epps,1155.0,1/6/22,Jessica  Broom,Denver,CO,80204,Consultant & Professional Services,Fee For Design Services
929,House District 06,Elisabeth Epps,122.43,1/9/22,Actblue,Somerville,MA,2144,Fundraising Expenses,Fee For Online Donor Management Service
930,House District 06,Elisabeth Epps,108.21,1/16/22,Actblue,Somerville,MA,2144,Fundraising Expenses,Fee For Online Donor Management Service
931,House District 06,Elisabeth Epps,294.35,1/19/22,C&D Printing,Denver,CO,80212,Office Equipment & Supplies,Campaign Supplies
932,House District 06,Elisabeth Epps,186.46,1/19/22,Lehrer'S Flowers,Denver,CO,80223,Other,Campaign Supplies
933,House District 06,Elisabeth Epps,27.88,1/19/22,Phone.Com,Poway,CA,92064,Telephone,Fee For Phone Service
934,House District 06,Elisabeth Epps,3132.44,1/19/22,Brittney  Buckley,Centennial,CO,80015,Consultant & Professional Services,Fee For Consultation Services
935,House District 06,Elisabeth Epps,500.0,1/19/22,Kent  Ware,Denver,CO,80230,Entertainment,Fee For Entertainment Services
936,House District 06,Elisabeth Epps,16.3,1/20/22,Zoom,San Jose,CA,95113,Office Equipment & Supplies,Fee For Video Conference Service
937,House District 06,Elisabeth Epps,1760.38,1/20/22,Stoney'S Bar & Grill,Denver,CO,80203,"Food, Beverages and Meals","Event Space, Food And Beverage"
938,House District 06,Elisabeth Epps,54.49,1/22/22,The Rocket Science Group,Atlanta,GA,30308,Office Equipment & Supplies,Fee For Web Service
939,House District 06,Elisabeth Epps,79.32,1/22/22,Office Max,Denver,CO,80209,Office Equipment & Supplies,Campaign Supplies
940,House District 06,Elisabeth Epps,136.55,1/22/22,Santiagos,Denver,CO,80204,"Food, Beverages and Meals",Food And Beverage
941,House District 06,Elisabeth Epps,91.47,1/23/22,Staples,Glendale,CO,80246,Office Equipment & Supplies,Campaign Supplies
942,House District 06,Elisabeth Epps,236.05,1/23/22,Actblue,Somerville,MA,2144,Fundraising Expenses,Fee For Online Donor Management Service
943,House District 06,Elisabeth Epps,54.9,1/23/22,Office Depot,Denver,CO,80222,Office Equipment & Supplies,Campaign Supplies
944,House District 06,Elisabeth Epps,7.0,1/23/22,Buzz Cafe,Denver,CO,80218,"Food, Beverages and Meals",Food And Beverage
945,House District 06,Elisabeth Epps,38.44,1/23/22,Buzz Cafe,Denver,CO,80218,"Food, Beverages and Meals",Food And Beverage
946,House District 06,Elisabeth Epps,98.49,1/24/22,Lamar'S Donuts And Coffee,Denver,CO,80204,"Food, Beverages and Meals",Food And Beverage
947,House District 06,Elisabeth Epps,-16.47,1/25/22,Staples,Glendale,CO,80246,Returned Expenditure,Staples Refund
948,House District 06,Elisabeth Epps,30.1,1/27/22,Roostercat Coffee House,Denver,CO,80203,"Food, Beverages and Meals",Food And Beverage
949,House District 06,Elisabeth Epps,23.98,1/28/22,Glass Arrow Coffee,Denver,CO,80220,"Food, Beverages and Meals",Food And Beverage
950,House District 06,Elisabeth Epps,54.61,1/29/22,Glass Arrow Coffee,Denver,CO,80220,"Food, Beverages and Meals",Food And Beverage
951,House District 06,Elisabeth Epps,138.87,1/30/22,Actblue,Somerville,MA,2144,Fundraising Expenses,Fee For Online Donor Management Service
952,House District 06,Elisabeth Epps,45.24,2/1/22,Target,Glendale,CO,80246,Office Equipment & Supplies,Campaign Supplies
953,House District 06,Elisabeth Epps,45.31,2/1/22,Roostercat Coffee House,Denver,CO,80203,"Food, Beverages and Meals",Food And Beverage
954,House District 06,Elisabeth Epps,37.25,2/1/22,Stoney'S Bar & Grill,Denver,CO,80203,"Food, Beverages and Meals","Event Space, Food And Beverage"
955,House District 06,Elisabeth Epps,150.82,2/1/22,Ngp Van,Washington,DC,20005,Office Equipment & Supplies,Fee For Access To Van
956,House District 06,Elisabeth Epps,185.41,2/2/22,C&D Printing,Denver,CO,80212,Office Equipment & Supplies,Campaign Supplies
957,House District 06,Elisabeth Epps,144.0,2/3/22,Veed Limited,"Benfleet, Essex",EN,0,Office Equipment & Supplies,Fee For Web Service
958,House District 06,Elisabeth Epps,95.89,2/3/22,Tessa Delicatessen,Denver,CO,80220,"Food, Beverages and Meals",Food And Beverage
959,House District 06,Elisabeth Epps,-10.42,2/4/22,Target,Glendale,CO,80246,Returned Expenditure,Target Refund
960,House District 06,Elisabeth Epps,17.0,2/5/22,Lamar'S Donuts And Coffee,Denver,CO,80204,"Food, Beverages and Meals",Food And Beverage
961,House District 06,Elisabeth Epps,-4.09,2/5/22,Staples,Glendale,CO,80246,Returned Expenditure,Staples Refund
962,House District 06,Elisabeth Epps,107.85,2/6/22,Actblue,Somerville,MA,2144,Fundraising Expenses,Fee For Online Donor Management Service
963,House District 06,Elisabeth Epps,150.05,2/7/22,Stoney'S Bar & Grill,Denver,CO,80203,"Food, Beverages and Meals",Food And Beverage
964,House District 06,Elisabeth Epps,70.25,2/9/22,Stoney'S Bar & Grill,Denver,CO,80203,"Food, Beverages and Meals",Food And Beverage
965,House District 06,Elisabeth Epps,30.79,2/13/22,Actblue,Somerville,MA,2144,Fundraising Expenses,Fee For Online Donor Management Service
966,House District 06,Elisabeth Epps,290.16,2/17/22,C&D Printing,Denver,CO,80212,Office Equipment & Supplies,Campaign Supplies
967,House District 06,Elisabeth Epps,28.0,2/19/22,Phone.Com,Poway,CA,92064,Telephone,Fee For Phone Service
968,House District 06,Elisabeth Epps,69.56,2/20/22,Actblue,Somerville,MA,2144,Fundraising Expenses,Fee For Online Donor Management Service
969,House District 06,Elisabeth Epps,16.3,2/20/22,Zoom,San Jose,CA,95113,Office Equipment & Supplies,Fee For Video Conference Service
970,House District 06,Elisabeth Epps,1485.0,2/20/22,Jessica  Broom,Denver,CO,80204,Consultant & Professional Services,Fee For Design Services
971,House District 06,Elisabeth Epps,1695.0,2/20/22,Bliss Collaborations,Denver,CO,80204,Consultant & Professional Services,Fee For Consultation Services
972,House District 06,Elisabeth Epps,61.84,2/22/22,The Rocket Science Group,Atlanta,GA,30308,Office Equipment & Supplies,Fee For Web Service
973,House District 06,Elisabeth Epps,56.0,2/23/22,Usps,Denver,CO,80206,Office Equipment & Supplies,Campaign Supplies
974,House District 06,Elisabeth Epps,237.37,2/27/22,Actblue,Somerville,MA,2144,Fundraising Expenses,Fee For Online Donor Management Service
975,House District 06,Elisabeth Epps,500.0,2/28/22,Kent  Ware,Denver,CO,80230,Entertainment,Fee For Entertainment Services
976,House District 06,Elisabeth Epps,38.86,3/1/22,Staples,Glendale,CO,80246,Fundraising Expenses,Campaign Supplies
977,House District 06,Elisabeth Epps,268.16,3/2/22,C&D Printing,Denver,CO,80212,Office Equipment & Supplies,Campaign Supplies
978,House District 06,Elisabeth Epps,150.82,3/2/22,Ngp Van,Washington,DC,20005,Office Equipment & Supplies,Fee For Access To Van
979,House District 06,Elisabeth Epps,251.22,3/6/22,Actblue,Somerville,MA,2144,Fundraising Expenses,Fee For Online Donor Management Service
980,House District 06,Elisabeth Epps,985.04,3/9/22,Stl Shirt Co.,St. Charles,MO,63304,Office Equipment & Supplies,Campaign Supplies
981,House District 06,Elisabeth Epps,100.0,3/9/22,Democratic Party Of Denver,Denver,CO,80209,Other,Event Fee
982,House District 06,Elisabeth Epps,23.03,3/13/22,Actblue,Somerville,MA,2144,Fundraising Expenses,Fee For Online Donor Management Service
983,House District 06,Elisabeth Epps,197.22,3/18/22,Santiagos,Denver,CO,80204,"Food, Beverages and Meals",Food And Beverage
984,House District 06,Elisabeth Epps,369.95,3/18/22,Artist Proof Collective,Denver,CO,80204,Office Equipment & Supplies,Campaign Supplies
985,House District 06,Elisabeth Epps,28.0,3/19/22,Phone.Com,Poway,CA,92064,Telephone,Fee For Phone Service
986,House District 06,Elisabeth Epps,104.3,3/19/22,Lamar'S Donuts And Coffee,Denver,CO,80204,"Food, Beverages and Meals",Food And Beverage
987,House District 06,Elisabeth Epps,295.15,3/19/22,Potbellys,Denver,CO,80222,"Food, Beverages and Meals",Food And Beverage
988,House District 06,Elisabeth Epps,39.35,3/20/22,Actblue,Somerville,MA,2144,Fundraising Expenses,Fee For Online Donor Management Service
989,House District 06,Elisabeth Epps,16.3,3/20/22,Zoom,San Jose,CA,95113,Office Equipment & Supplies,Fee For Video Conference Service
990,House District 06,Elisabeth Epps,61.84,3/22/22,The Rocket Science Group,Atlanta,GA,30308,Office Equipment & Supplies,Fee For Web Service
991,House District 06,Elisabeth Epps,323.68,3/26/22,C&D Printing,Denver,CO,80212,Office Equipment & Supplies,Campaign Supplies
992,House District 06,Elisabeth Epps,134.46,3/27/22,Actblue,Somerville,MA,2144,Fundraising Expenses,Fee For Online Donor Management Service
993,House District 06,Elisabeth Epps,4932.44,3/30/22,Brittney  Buckley,Centennial,CO,80015,Consultant & Professional Services,Fee For Consultation Services
994,House District 06,Elisabeth Epps,4932.44,3/30/22,Brittney  Buckley,Centennial,CO,80015,Consultant & Professional Services,Fee For Consultation Services
995,House District 06,Elisabeth Epps,1449.0,3/30/22,Jessica  Broom,Denver,CO,80204,Consultant & Professional Services,Fee For Design Services
996,House District 06,Elisabeth Epps,8.0,3/31/22,Hours,Frisco,TX,75034,Office Equipment & Supplies,Fee For Web Service
997,House District 06,Elisabeth Epps,3161.2,3/31/22,Melanie  Kesner,Littleton,CO,,Consultant & Professional Services,Fee For Consultation Services
998,House District 06,Elisabeth Epps,94.46,3/31/22,Actblue,Somerville,MA,2144,Fundraising Expenses,Fee For Online Donor Management Service
999,House District 06,Elisabeth Epps,500.0,4/1/22,Bliss Collaborations,Denver,CO,80204,Consultant & Professional Services,Fee For Consultation Services
1000,House District 06,Elisabeth Epps,690.0,4/1/22,Jessica  Broom,Denver,CO,80204,Consultant & Professional Services,Fee For Design Services
1001,House District 06,Elisabeth Epps,82.03,4/3/22,Actblue,Somerville,MA,2144,Fundraising Expenses,Fee For Online Donor Management Service
1002,House District 06,Elisabeth Epps,501.53,4/4/22,Onyx,Ferguson,MO,63135,Office Equipment & Supplies,Campaign Supplies
1003,House District 06,Elisabeth Epps,150.82,4/4/22,Ngp Van,Washington,DC,20005,Office Equipment & Supplies,Fee For Access To Van
1004,House District 06,Elisabeth Epps,47.37,4/10/22,Actblue,Somerville,MA,2144,Fundraising Expenses,Fee For Online Donor Management Service
1005,House District 06,Elisabeth Epps,1170.0,4/11/22,Windsor Gardens Association,Denver,CO,80247,Advertising,Fee For Advertising
1006,House District 06,Elisabeth Epps,2611.44,4/12/22,Artist Proof Collective,Denver,CO,80204,Office Equipment & Supplies,Campaign Supplies
1007,House District 06,Elisabeth Epps,360.35,4/13/22,C&D Printing,Denver,CO,80212,Office Equipment & Supplies,Campaign Supplies
1008,House District 06,Elisabeth Epps,70.01,4/17/22,Actblue,Somerville,MA,2144,Fundraising Expenses,Fee For Online Donor Management Service
1009,House District 06,Elisabeth Epps,51.0,4/18/22,Denver Parks & Rec,Denver,CO,80202,Other,Fee For Event Space
1010,House District 06,Elisabeth Epps,27.87,4/19/22,Phone.Com,Poway,CA,92064,Telephone,Fee For Phone Service
1011,House District 06,Elisabeth Epps,106.85,4/20/22,C&D Printing,Denver,CO,80212,Office Equipment & Supplies,Campaign Supplies
1012,House District 06,Elisabeth Epps,16.3,4/20/22,Zoom,San Jose,CA,95113,Office Equipment & Supplies,Fee For Video Conference Service
1013,House District 06,Elisabeth Epps,61.84,4/22/22,The Rocket Science Group,Atlanta,GA,30308,Office Equipment & Supplies,Fee For Web Service
1014,House District 06,Elisabeth Epps,1204.63,4/22/22,C&D Printing,Denver,CO,80212,Office Equipment & Supplies,Campaign Supplies
1015,House District 06,Elisabeth Epps,169.78,4/24/22,Actblue,Somerville,MA,2144,Fundraising Expenses,Fee For Online Donor Management Service
1016,House District 06,Elisabeth Epps,95.0,4/27/22,Campaign Verify,Washington,DC,20007,Fundraising Expenses,Fee For Web Service
1017,House District 06,Elisabeth Epps,331.0,4/27/22,Hutchinson Black & Cook,Boulder,CO,80302,Consultant & Professional Services,Icces Case Access And Filing Fees
1018,House District 06,Elisabeth Epps,1500.0,4/30/22,Katherine  Mcelwain,Denver,CO,80203,Consultant & Professional Services,Consultation Services
1019,House District 06,Elisabeth Epps,5250.0,4/30/22,Jessica  Howard,Denver,CO,80239,Consultant & Professional Services,Consultation Services
1020,House District 06,Elisabeth Epps,150.82,5/1/22,Ngp Van,Washington,DC,20005,Office Equipment & Supplies,Fee For Access To Van
1021,House District 06,Elisabeth Epps,440.15,5/1/22,Actblue,Somerville,MA,2144,Fundraising Expenses,Online Donor Management Service
1022,House District 06,Elisabeth Epps,22.9,5/3/22,Scale To Win,Santa Ana,CA,92703,Fundraising Expenses,Texting Service
1023,House District 06,Elisabeth Epps,1748.28,5/4/22,C&D Printing,Denver,CO,80212,Office Equipment & Supplies,Campaign Supplies
1024,House District 06,Elisabeth Epps,94.28,5/4/22,C&D Printing,Denver,CO,80212,Office Equipment & Supplies,Campaign Supplies
1025,House District 06,Elisabeth Epps,261.63,5/8/22,Actblue,Somerville,MA,2144,Fundraising Expenses,Online Donor Management Service
1026,House District 06,Elisabeth Epps,74.0,5/9/22,Usps,Denver,CO,80206,Office Equipment & Supplies,Postage
1027,House District 06,Elisabeth Epps,51.0,5/12/22,Denver Parks & Rec,Denver,CO,80202,Other,Park Fee
1028,House District 06,Elisabeth Epps,118.8,5/15/22,Actblue,Somerville,MA,2144,Fundraising Expenses,
1029,House District 06,Elisabeth Epps,27.87,5/19/22,Phone.Com,Poway,CA,92064,Telephone,Fee For Phone Service
1030,House District 06,Elisabeth Epps,16.3,5/20/22,Zoom,San Jose,CA,95113,Office Equipment & Supplies,Fee For Video Conference Service
1031,House District 06,Elisabeth Epps,61.84,5/22/22,The Rocket Science Group,Atlanta,GA,30308,Office Equipment & Supplies,Fee For Web Service
1032,House District 06,Elisabeth Epps,212.8,5/22/22,Actblue,Somerville,MA,2144,Fundraising Expenses,
1033,House District 06,Elisabeth Epps,780.0,5/26/22,Jessica  Broom,Denver,CO,80204,Consultant & Professional Services,
1034,House District 06,Elisabeth Epps,9443.05,5/27/22,C&D Printing,Denver,CO,80212,Office Equipment & Supplies,
1035,House District 06,Elisabeth Epps,295.06,5/29/22,Actblue,Somerville,MA,2144,Fundraising Expenses,
1036,House District 06,Elisabeth Epps,4350.0,5/31/22,Katherine  Mcelwain,Denver,CO,80203,Consultant & Professional Services,
1037,House District 06,Elisabeth Epps,5250.0,5/31/22,Jessica  Howard,Denver,CO,80239,Consultant & Professional Services,
1038,House District 06,Elisabeth Epps,1200.0,6/1/22,Wilton Llc,Lakewood,CO,80228,Rent & Utilities,
1039,House District 06,Elisabeth Epps,1200.0,6/1/22,Wilton Llc,Lakewood,CO,80228,Rent & Utilities,
1040,House District 06,Elisabeth Epps,150.82,6/1/22,Ngp Van,Washington,DC,20005,Office Equipment & Supplies,
1041,House District 06,Elisabeth Epps,16751.0,6/2/22,Compete Llc,Washington,DC,20003,Advertising,
1042,House District 06,Elisabeth Epps,11.86,6/2/22,Scale To Win,Santa Ana,CA,92703,Fundraising Expenses,
1043,House District 06,Elisabeth Epps,-16751.0,6/2/22,Compete Llc,Washington,DC,20003,Advertising,Offset Due To Update Of Filed Item
1044,House District 06,Elisabeth Epps,16751.0,6/2/22,Compete Digital,Washington,DC,20003,Advertising,
1045,House District 06,Elisabeth Epps,51.0,6/5/22,Denver Parks & Rec,Denver,CO,80202,Miscellaneous,
1046,House District 06,Elisabeth Epps,320.59,6/5/22,Actblue,Somerville,MA,2144,Fundraising Expenses,
1047,House District 06,Elisabeth Epps,501.65,6/8/22,Dr. Don'S Buttons,Glendale,AZ,85308,Miscellaneous,
1048,House District 06,Elisabeth Epps,100.0,6/8/22,Mie High Festivals,Denver,CO,80205,Miscellaneous,
1049,House District 06,Elisabeth Epps,204.69,6/9/22,El Gran Jardin,Denver,CO,80247,"Food, Beverages and Meals",Windsor Gardens
1050,House District 06,Elisabeth Epps,1440.0,6/9/22,Usps,Denver,CO,80206,Other,Postage
1051,House District 06,Elisabeth Epps,2272.03,6/9/22,C&D Printing,Denver,CO,80212,Office Equipment & Supplies,
1052,House District 06,Elisabeth Epps,1681.83,6/11/22,Cut The Plastic,Lakewood,CO,80214,Office Equipment & Supplies,
1053,House District 06,Elisabeth Epps,410.04,6/12/22,Actblue,Somerville,MA,2144,Fundraising Expenses,
1054,House District 06,Elisabeth Epps,24000.0,6/14/22,Compete Digital,Washington,DC,20003,Advertising,
1055,House District 06,Elisabeth Epps,9364.51,6/14/22,Printnm/Don Mickey Designs,Albuquerque,NM,87106,Advertising,
1056,House District 06,Elisabeth Epps,1373.73,6/17/22,Artist Proof Collective,Denver,CO,80204,Advertising,
1057,House District 06,Elisabeth Epps,27.93,6/19/22,Phone.Com,Poway,CA,92064,Telephone,
1058,House District 06,Elisabeth Epps,245.62,6/19/22,Actblue,Somerville,MA,2144,Fundraising Expenses,
1059,House District 06,Elisabeth Epps,1739.46,6/20/22,Scale To Win,Santa Ana,CA,92703,Other,Voter Outreach Via Phone/Text
1060,House District 06,Elisabeth Epps,16.3,6/20/22,Zoom,San Jose,CA,95113,Office Equipment & Supplies,Video Conferencing
1061,House District 06,Elisabeth Epps,2776.65,6/20/22,Gamino Printing Co.,Denver,CO,80223,Advertising,
1062,House District 06,Elisabeth Epps,400.0,6/21/22,Usps,Denver,CO,80206,Other,Postage
1063,House District 06,Elisabeth Epps,1157.37,6/21/22,Cut The Plastic,Lakewood,CO,80214,Office Equipment & Supplies,
1064,House District 06,Elisabeth Epps,156.52,6/22/22,The Rocket Science Group,Atlanta,GA,30308,Office Equipment & Supplies,
1065,House District 06,Elisabeth Epps,73.37,6/22/22,Usps Po,Denver,CO,80206,Office Equipment & Supplies,
1066,House District 06,Elisabeth Epps,1157.37,6/22/22,Scale To Win,Santa Ana,CA,92703,Consultant & Professional Services,
1067,House District 06,Elisabeth Epps,1739.46,6/22/22,Zoom,San Jose,CA,95113,Office Equipment & Supplies,
1068,House District 06,Elisabeth Epps,16.3,6/22/22,Phone.Com,Poway,CA,92064,Telephone,
1069,House District 06,Elisabeth Epps,24000.0,6/22/22,Compete Digital,Washington,DC,20003,Advertising,
1070,House District 06,Elisabeth Epps,-1739.46,6/22/22,Zoom,San Jose,CA,95113,Office Equipment & Supplies,Offset Due To Update Of Filed Item
1071,House District 06,Elisabeth Epps,-16.3,6/22/22,Phone.Com,Poway,CA,92064,Telephone,Offset Due To Update Of Filed Item
1072,House District 06,Elisabeth Epps,-24000.0,6/22/22,Compete Digital,Washington,DC,20003,Advertising,Offset Due To Update Of Filed Item
1073,House District 06,Elisabeth Epps,-156.52,6/22/22,The Rocket Science Group,Atlanta,GA,30308,Office Equipment & Supplies,Offset Due To Update Of Filed Item
1074,House District 06,Elisabeth Epps,73.37,6/22/22,The Rocket Science Group,Atlanta,GA,30308,Office Equipment & Supplies,
1075,House District 06,Elisabeth Epps,-73.37,6/22/22,Usps Po,Denver,CO,80206,Office Equipment & Supplies,Offset Due To Update Of Filed Item
1076,House District 06,Elisabeth Epps,156.52,6/22/22,Dr. Don'S Buttons,Glendale,AZ,85308,Advertising,
1077,House District 06,Elisabeth Epps,-1157.37,6/22/22,Scale To Win,Santa Ana,CA,92703,Consultant & Professional Services,Offset Due To Update Of Filed Item
1078,House District 06,Elisabeth Epps,543.75,6/23/22,Jessica  Broom,Denver,CO,80204,Consultant & Professional Services,Campaign Art And Design
1079,House District 06,Elisabeth Epps,7500.0,6/24/22,Compete Digital,Washington,DC,20003,Advertising,
1080,House District 06,Elisabeth Epps,347.0,6/26/22,Actblue,Somerville,MA,2144,Fundraising Expenses,
1081,House District 06,Elisabeth Epps,21.08,6/28/22,Actblue,Somerville,MA,2144,Fundraising Expenses,
1082,House District 06,Elisabeth Epps,5350.0,6/30/22,Katherine  Mcelwain,Denver,CO,80203,Consultant & Professional Services,
1083,House District 06,Elisabeth Epps,27.61,6/30/22,Actblue,Somerville,MA,2144,Fundraising Expenses,
1084,House District 06,Elisabeth Epps,-1200.0,7/1/22,Wilton Llc,Lakewood,CO,80228,Returned Expenditure,Security Deposit Return
1085,House District 06,Elisabeth Epps,61.93,7/3/22,Actblue,Somerville,MA,2144,Fundraising Expenses,
1086,House District 06,Elisabeth Epps,26.27,7/5/22,Target,Glendale,CO,80246,Office Equipment & Supplies,
1087,House District 06,Elisabeth Epps,26.97,7/7/22,Target,Glendale,CO,80246,Office Equipment & Supplies,
1088,House District 06,Elisabeth Epps,1215.0,7/9/22,Zack  Burley,Glendale,CO,80246,Consultant & Professional Services,
1089,House District 06,Elisabeth Epps,4050.0,7/9/22,Tim  Hernandez,Denver,CO,80211,Consultant & Professional Services,
1090,House District 06,Elisabeth Epps,33.36,7/10/22,Actblue,Somerville,MA,2144,Fundraising Expenses,
1091,House District 06,Elisabeth Epps,-1000.0,7/11/22,Compete Digital,Washington,DC,20003,Returned Expenditure,Refund From Vendor
1092,House District 06,Elisabeth Epps,1053.06,7/12/22,Jessica  Howard,Denver,CO,80239,Office Equipment & Supplies,
1093,House District 06,Elisabeth Epps,5250.0,7/12/22,Jessica  Howard,Denver,CO,80239,Consultant & Professional Services,
1094,House District 06,Elisabeth Epps,20.0,7/13/22,Denver Manager Of Finance,Denver,CO,80202,Other,"Map Purchase, Clerk And Recorder, Elections Division"
1095,House District 06,Elisabeth Epps,86.97,7/13/22,Katherine  Mcelwain,Denver,CO,80203,Office Equipment & Supplies,
1096,House District 06,Elisabeth Epps,1290.0,7/15/22,Jessica  Broom,Denver,CO,80204,Consultant & Professional Services,June 2022 Campaign Art
1097,House District 06,Elisabeth Epps,30.18,7/15/22,"Carousel Checks, Inc.",Worth,IL,60482-0340,Bank Fees,
1098,House District 06,Elisabeth Epps,57.03,7/17/22,Actblue,Somerville,MA,2144,Fundraising Expenses,
1099,House District 06,Elisabeth Epps,29.23,7/19/22,Phone.Com,Poway,CA,92064,Telephone,Fee For Phone Service
1100,House District 06,Elisabeth Epps,16.3,7/20/22,Zoom,San Jose,CA,95113,Office Equipment & Supplies,Fee For Video Conference Service
